Workbook

Sheet Formulario
I2: Si | L2: Consumo
I3: No | L3: Libre Destino
L4: Rotativo
L5: Vehículo
E9: Valor Total Unificado (VTU)
E11: ~ Para ayudarte a tomar la decisión correcta, aquí encuentras el Valor Total Unificado de cada uno de los productos que deseas adquirir con nosotros. ~ Los valores aquí presentados corresponden a una proyección, por tanto no necesariamente corresponden a lo valores que va a pagar por la totalidad de su producto
E15: Ingresa los datos para tu simulación
E17: Tipo de Crédito | F17: Vehículo
E18: Valor a Financiar | F18: 40000000
E19: Tasa de Colocación mv (%) | F19: 0.008
E20: Plazo en meses | F20: 36
E21: Seguro de Vida | F21: Si
E22: Seguro de Desempleo | F22: No
E27: Resultado para tu simulación
E29: VTU en pesos | H29: VTU en puntos porcentuales (E.A %)
E31: Capital | F31: =F18 -> 40000000 | H31: Intereses (E.A) | I31: =(1+($F$19))^12-1 -> 0.1003386937
E32: Intereses | F32: =Hoja2!$I$2 -> 6194790.535 | H32: Intereses + Seg Vida (E.A) | I32: =(1+Hoja2!$D$2)^12-1 -> 0.1288201262
E33: Seguro de Vida | F33: =IF(F21="Si",($F$18)*$F$20*0.122%,0) -> 1756800 | H33: Intereses + Seg Vida + Desemp.(E.A) | I33: =IF(F22="No","",Hoja2!E1) -> 
E34: Seguro de Desempleo | F34: =IF(F22="No",0,(F38+F39+F40)*12*5.5811%) -> 0
E36: VTU Actual | F36: =SUM(F31:F34) -> 47951590.54 | H36: VTU Actual ( E.A) | I36: =IF(F22="No",I32,I33) -> 0.1288201262
E38: Cuota Vehiculo | F38: =PMT($F$19,$F$20,-$F$18) -> 1283188.626
E39: Cuota Seguro Todo Riesgo | F39: =PMT($F$19,$F$20,-$F$24) -> 0
E40: Cuota Seguro Vida | F40: =PMT($F$19,$F$20,-$F$33) -> 56357.64445
E41: Cuota Protección Financiera | F41: =PMT($F$19,$F$20,-$F$34) -> 0

Sheet Hoja2 (hidden)
D1: =(1+D2)^12-1 -> 0.1288201262 | E1: =(1+E2)^12-1 -> 0.1288201262
D2: =IRR(D4:D1048576) -> 0.0101489002 | E2: =IRR(E4:E1048576) -> 0.0101489002 | I2: =SUM(I4:I104) -> 6194790.535 | M2: =SUM(M4:M104) -> 0 | Q2: =SUM(Q4:Q104) -> 272075.2003 | U2: =SUM(U4:U104) -> 0
B3: No | D3: Auto + Seg Vida | E3: Auto + Seg Vida + Desem | G3: Cuota Auto | H3: Capital | I3: Interes | J3: Abono Capital | K3: Seguro Auto | L3: Capital | M3: Interes | N3: Abono Capital | O3: Seguro Vida | P3: Capital | Q3: Interes | R3: Abono Capital | S3: Seguro Protección | T3: Capital | U3: Interes | V3: Abono Capital
B4: 0 | D4: =H4 -> 40000000 | E4: =H4 -> 40000000 | H4: =Formulario!$F$18 -> 40000000 | L4: =Formulario!$F$24 -> 0 | P4: =Formulario!$F$33 -> 1756800 | T4: =Formulario!$F$34 -> 0
B5: =B4+1 -> 1 | D5: =-(G5+IF(B5>Formulario!$F$20,0,($P$4/Formulario!$F$20))) -> -1331988.626 | E5: =-IF(B5>Formulario!$F$20,0,(G5+($P$4/Formulario!$F$20)+Formulario!$F$34/12)) -> -1331988.626 | G5: =IF(B5>Formulario!$F$20,0,PMT((Formulario!$F$19),Formulario!$F$20,-Formulario!$F$18)) -> 1283188.626 | H5: =+H4-J5 -> 39036811.37 | I5: =H4*Formulario!$F$19 -> 320000 | J5: =+G5-I5 -> 963188.626 | K5: =IF(B5>Formulario!$F$20,0,PMT((Formulario!$F$19),Formulario!$F$20,-Formulario!$F$24)) -> 0 | L5: =+L4-N5 -> 0 | M5: =L4*Formulario!$F$19 -> 0 | N5: =+K5-M5 -> 0 | O5: =IF(B5>Formulario!$F$20,0,PMT((Formulario!$F$19),Formulario!$F$20,-Formulario!$F$33)) -> 56357.64445 | P5: =+P4-R5 -> 1714496.756 | Q5: =P4*Formulario!$F$19 -> 14054.4 | R5: =+O5-Q5 -> 42303.24445 | S5: =IF(B5>Formulario!$F$20,0,PMT((Formulario!$F$19),Formulario!$F$20,-Formulario!$F$34)) -> 0 | T5: =+T4-V5 -> 0 | U5: =T4*Formulario!$F$19 -> 0 | V5: =IF($B$39="Prima Mes",0,S5-U5) -> 0
B6: =B5+1 -> 2 | D6: =-(G6+IF(B6>Formulario!$F$20,0,($P$4/Formulario!$F$20))) -> -1331988.626 | E6: =-IF(B6>Formulario!$F$20,0,(G6+($P$4/Formulario!$F$20)+Formulario!$F$34/12)) -> -1331988.626 | G6: =IF(B6>Formulario!$F$20,0,PMT((Formulario!$F$19),Formulario!$F$20,-Formulario!$F$18)) -> 1283188.626 | H6: =+H5-J6 -> 38065917.24 | I6: =H5*Formulario!$F$19 -> 312294.491 | J6: =+G6-I6 -> 970894.135 | K6: =IF(B6>Formulario!$F$20,0,PMT((Formulario!$F$19),Formulario!$F$20,-Formulario!$F$24)) -> 0 | L6: =+L5-N6 -> 0 | M6: =L5*Formulario!$F$19 -> 0 | N6: =+K6-M6 -> 0 | O6: =IF(B6>Formulario!$F$20,0,PMT((Formulario!$F$19),Formulario!$F$20,-Formulario!$F$33)) -> 56357.64445 | P6: 1671855.085 | Q6: =P5*Formulario!$F$19 -> 13715.97404 | R6: =+O6-Q6 -> 42641.67041 | S6: =IF(B6>Formulario!$F$20,0,PMT((Formulario!$F$19),Formulario!$F$20,-Formulario!$F$34)) -> 0 | T6: =IF(B6>$B$16,0,IF($B$39="Prima Mes",0,IF($B$39="Prima Anual",IF(AND(B6<12,OR(B6=0,B6=12,B6=24,B6=36,B6=48,B6=60,B6=72)),$B$41,T5-V6),IF(B6=0,$B$41,T5-V6)))) -> 0 | U6: =T5*Formulario!$F$19 -> 0 | V6: 0
B7: 3 | D7: =-(G7+IF(B7>Formulario!$F$20,0,($P$4/Formulario!$F$20))) -> -1331988.626 | E7: =-IF(B7>Formulario!$F$20,0,(G7+($P$4/Formulario!$F$20)+Formulario!$F$34/12)) -> -1331988.626 | G7: =IF(B7>Formulario!$F$20,0,PMT((Formulario!$F$19),Formulario!$F$20,-Formulario!$F$18)) -> 1283188.626 | H7: 37087255.95 | I7: =H6*Formulario!$F$19 -> 304527.3379 | J7: 978661.2881 | K7: =IF(B7>Formulario!$F$20,0,PMT((Formulario!$F$19),Formulario!$F$20,-Formulario!$F$24)) -> 0 | L7: 0 | M7: =L6*Formulario!$F$19 -> 0 | N7: 0 | O7: =IF(B7>Formulario!$F$20,0,PMT((Formulario!$F$19),Formulario!$F$20,-Formulario!$F$33)) -> 56357.64445 | P7: 1628872.281 | Q7: =P6*Formulario!$F$19 -> 13374.84068 | R7: 42982.80377 | S7: =IF(B7>Formulario!$F$20,0,PMT((Formulario!$F$19),Formulario!$F$20,-Formulario!$F$34)) -> 0 | T7: 0 | U7: =T6*Formulario!$F$19 -> 0 | V7: 0
B8: 4 | D8: =-(G8+IF(B8>Formulario!$F$20,0,($P$4/Formulario!$F$20))) -> -1331988.626 | E8: =-IF(B8>Formulario!$F$20,0,(G8+($P$4/Formulario!$F$20)+Formulario!$F$34/12)) -> -1331988.626 | G8: =IF(B8>Formulario!$F$20,0,PMT((Formulario!$F$19),Formulario!$F$20,-Formulario!$F$18)) -> 1283188.626 | H8: 36100765.37 | I8: =H7*Formulario!$F$19 -> 296698.0476 | J8: 986490.5784 | K8: =IF(B8>Formulario!$F$20,0,PMT((Formulario!$F$19),Formulario!$F$20,-Formulario!$F$24)) -> 0 | L8: 0 | M8: =L7*Formulario!$F$19 -> 0 | N8: 0 | O8: =IF(B8>Formulario!$F$20,0,PMT((Formulario!$F$19),Formulario!$F$20,-Formulario!$F$33)) -> 56357.64445 | P8: 1585545.615 | Q8: =P7*Formulario!$F$19 -> 13030.97825 | R8: 43326.6662 | S8: =IF(B8>Formulario!$F$20,0,PMT((Formulario!$F$19),Formulario!$F$20,-Formulario!$F$34)) -> 0 | T8: 0 | U8: =T7*Formulario!$F$19 -> 0 | V8: 0
B9: 5 | D9: =-(G9+IF(B9>Formulario!$F$20,0,($P$4/Formulario!$F$20))) -> -1331988.626 | E9: =-IF(B9>Formulario!$F$20,0,(G9+($P$4/Formulario!$F$20)+Formulario!$F$34/12)) -> -1331988.626 | G9: =IF(B9>Formulario!$F$20,0,PMT((Formulario!$F$19),Formulario!$F$20,-Formulario!$F$18)) -> 1283188.626 | H9: 35106382.87 | I9: =H8*Formulario!$F$19 -> 288806.123 | J9: 994382.503 | K9: =IF(B9>Formulario!$F$20,0,PMT((Formulario!$F$19),Formulario!$F$20,-Formulario!$F$24)) -> 0 | L9: 0 | M9: =L8*Formulario!$F$19 -> 0 | N9: 0 | O9: =IF(B9>Formulario!$F$20,0,PMT((Formulario!$F$19),Formulario!$F$20,-Formulario!$F$33)) -> 56357.64445 | P9: 1541872.336 | Q9: =P8*Formulario!$F$19 -> 12684.36492 | R9: 43673.27953 | S9: =IF(B9>Formulario!$F$20,0,PMT((Formulario!$F$19),Formulario!$F$20,-Formulario!$F$34)) -> 0 | T9: 0 | U9: =T8*Formulario!$F$19 -> 0 | V9: 0
B10: 6 | D10: =-(G10+IF(B10>Formulario!$F$20,0,($P$4/Formulario!$F$20))) -> -1331988.626 | E10: =-IF(B10>Formulario!$F$20,0,(G10+($P$4/Formulario!$F$20)+Formulario!$F$34/12)) -> -1331988.626 | G10: =IF(B10>Formulario!$F$20,0,PMT((Formulario!$F$19),Formulario!$F$20,-Formulario!$F$18)) -> 1283188.626 | H10: 34104045.31 | I10: =H9*Formulario!$F$19 -> 280851.063 | J10: 1002337.563 | K10: =IF(B10>Formulario!$F$20,0,PMT((Formulario!$F$19),Formulario!$F$20,-Formulario!$F$24)) -> 0 | L10: 0 | M10: =L9*Formulario!$F$19 -> 0 | N10: 0 | O10: =IF(B10>Formulario!$F$20,0,PMT((Formulario!$F$19),Formulario!$F$20,-Formulario!$F$33)) -> 56357.64445 | P10: 1497849.67 | Q10: =P9*Formulario!$F$19 -> 12334.97869 | R10: 44022.66577 | S10: =IF(B10>Formulario!$F$20,0,PMT((Formulario!$F$19),Formulario!$F$20,-Formulario!$F$34)) -> 0 | T10: 0 | U10: =T9*Formulario!$F$19 -> 0 | V10: 0
B11: 7 | D11: =-(G11+IF(B11>Formulario!$F$20,0,($P$4/Formulario!$F$20))) -> -1331988.626 | E11: =-IF(B11>Formulario!$F$20,0,(G11+($P$4/Formulario!$F$20)+Formulario!$F$34/12)) -> -1331988.626 | G11: =IF(B11>Formulario!$F$20,0,PMT((Formulario!$F$19),Formulario!$F$20,-Formulario!$F$18)) -> 1283188.626 | H11: 33093689.04 | I11: =H10*Formulario!$F$19 -> 272832.3625 | J11: 1010356.264 | K11: =IF(B11>Formulario!$F$20,0,PMT((Formulario!$F$19),Formulario!$F$20,-Formulario!$F$24)) -> 0 | L11: 0 | M11: =L10*Formulario!$F$19 -> 0 | N11: 0 | O11: =IF(B11>Formulario!$F$20,0,PMT((Formulario!$F$19),Formulario!$F$20,-Formulario!$F$33)) -> 56357.64445 | P11: 1453474.823 | Q11: =P10*Formulario!$F$19 -> 11982.79736 | R11: 44374.84709 | S11: =IF(B11>Formulario!$F$20,0,PMT((Formulario!$F$19),Formulario!$F$20,-Formulario!$F$34)) -> 0 | T11: 0 | U11: =T10*Formulario!$F$19 -> 0 | V11: 0
B12: 8 | D12: =-(G12+IF(B12>Formulario!$F$20,0,($P$4/Formulario!$F$20))) -> -1331988.626 | E12: =-IF(B12>Formulario!$F$20,0,(G12+($P$4/Formulario!$F$20)+Formulario!$F$34/12)) -> -1331988.626 | G12: =IF(B12>Formulario!$F$20,0,PMT((Formulario!$F$19),Formulario!$F$20,-Formulario!$F$18)) -> 1283188.626 | H12: 32075249.93 | I12: =H11*Formulario!$F$19 -> 264749.5123 | J12: 1018439.114 | K12: =IF(B12>Formulario!$F$20,0,PMT((Formulario!$F$19),Formulario!$F$20,-Formulario!$F$24)) -> 0 | L12: 0 | M12: =L11*Formulario!$F$19 -> 0 | N12: 0 | O12: =IF(B12>Formulario!$F$20,0,PMT((Formulario!$F$19),Formulario!$F$20,-Formulario!$F$33)) -> 56357.64445 | P12: 1408744.977 | Q12: =P11*Formulario!$F$19 -> 11627.79858 | R12: 44729.84587 | S12: =IF(B12>Formulario!$F$20,0,PMT((Formulario!$F$19),Formulario!$F$20,-Formulario!$F$34)) -> 0 | T12: 0 | U12: =T11*Formulario!$F$19 -> 0 | V12: 0
B13: 9 | D13: =-(G13+IF(B13>Formulario!$F$20,0,($P$4/Formulario!$F$20))) -> -1331988.626 | E13: =-IF(B13>Formulario!$F$20,0,(G13+($P$4/Formulario!$F$20)+Formulario!$F$34/12)) -> -1331988.626 | G13: =IF(B13>Formulario!$F$20,0,PMT((Formulario!$F$19),Formulario!$F$20,-Formulario!$F$18)) -> 1283188.626 | H13: 31048663.3 | I13: =H12*Formulario!$F$19 -> 256601.9994 | J13: 1026586.627 | K13: =IF(B13>Formulario!$F$20,0,PMT((Formulario!$F$19),Formulario!$F$20,-Formulario!$F$24)) -> 0 | L13: 0 | M13: =L12*Formulario!$F$19 -> 0 | N13: 0 | O13: =IF(B13>Formulario!$F$20,0,PMT((Formulario!$F$19),Formulario!$F$20,-Formulario!$F$33)) -> 56357.64445 | P13: 1363657.292 | Q13: =P12*Formulario!$F$19 -> 11269.95982 | R13: 45087.68464 | S13: =IF(B13>Formulario!$F$20,0,PMT((Formulario!$F$19),Formulario!$F$20,-Formulario!$F$34)) -> 0 | T13: 0 | U13: =T12*Formulario!$F$19 -> 0 | V13: 0
B14: 10 | D14: =-(G14+IF(B14>Formulario!$F$20,0,($P$4/Formulario!$F$20))) -> -1331988.626 | E14: =-IF(B14>Formulario!$F$20,0,(G14+($P$4/Formulario!$F$20)+Formulario!$F$34/12)) -> -1331988.626 | G14: =IF(B14>Formulario!$F$20,0,PMT((Formulario!$F$19),Formulario!$F$20,-Formulario!$F$18)) -> 1283188.626 | H14: 30013863.98 | I14: =H13*Formulario!$F$19 -> 248389.3064 | J14: 1034799.32 | K14: =IF(B14>Formulario!$F$20,0,PMT((Formulario!$F$19),Formulario!$F$20,-Formulario!$F$24)) -> 0 | L14: 0 | M14: =L13*Formulario!$F$19 -> 0 | N14: 0 | O14: =IF(B14>Formulario!$F$20,0,PMT((Formulario!$F$19),Formulario!$F$20,-Formulario!$F$33)) -> 56357.64445 | P14: 1318208.906 | Q14: =P13*Formulario!$F$19 -> 10909.25834 | R14: 45448.38611 | S14: =IF(B14>Formulario!$F$20,0,PMT((Formulario!$F$19),Formulario!$F$20,-Formulario!$F$34)) -> 0 | T14: 0 | U14: =T13*Formulario!$F$19 -> 0 | V14: 0
B15: 11 | D15: =-(G15+IF(B15>Formulario!$F$20,0,($P$4/Formulario!$F$20))) -> -1331988.626 | E15: =-IF(B15>Formulario!$F$20,0,(G15+($P$4/Formulario!$F$20)+Formulario!$F$34/12)) -> -1331988.626 | G15: =IF(B15>Formulario!$F$20,0,PMT((Formulario!$F$19),Formulario!$F$20,-Formulario!$F$18)) -> 1283188.626 | H15: 28970786.27 | I15: =H14*Formulario!$F$19 -> 240110.9119 | J15: 1043077.714 | K15: =IF(B15>Formulario!$F$20,0,PMT((Formulario!$F$19),Formulario!$F$20,-Formulario!$F$24)) -> 0 | L15: 0 | M15: =L14*Formulario!$F$19 -> 0 | N15: 0 | O15: =IF(B15>Formulario!$F$20,0,PMT((Formulario!$F$19),Formulario!$F$20,-Formulario!$F$33)) -> 56357.64445 | P15: 1272396.933 | Q15: =P14*Formulario!$F$19 -> 10545.67125 | R15: 45811.9732 | S15: =IF(B15>Formulario!$F$20,0,PMT((Formulario!$F$19),Formulario!$F$20,-Formulario!$F$34)) -> 0 | T15: 0 | U15: =T14*Formulario!$F$19 -> 0 | V15: 0
B16: 12 | D16: =-(G16+IF(B16>Formulario!$F$20,0,($P$4/Formulario!$F$20))) -> -1331988.626 | E16: =-IF(B16>Formulario!$F$20,0,(G16+($P$4/Formulario!$F$20)+Formulario!$F$34/12)) -> -1331988.626 | G16: =IF(B16>Formulario!$F$20,0,PMT((Formulario!$F$19),Formulario!$F$20,-Formulario!$F$18)) -> 1283188.626 | H16: 27919363.93 | I16: =H15*Formulario!$F$19 -> 231766.2902 | J16: 1051422.336 | K16: =IF(B16>Formulario!$F$20,0,PMT((Formulario!$F$19),Formulario!$F$20,-Formulario!$F$24)) -> 0 | L16: 0 | M16: =L15*Formulario!$F$19 -> 0 | N16: 0 | O16: =IF(B16>Formulario!$F$20,0,PMT((Formulario!$F$19),Formulario!$F$20,-Formulario!$F$33)) -> 56357.64445 | P16: 1226218.464 | Q16: =P15*Formulario!$F$19 -> 10179.17546 | R16: 46178.46899 | S16: =IF(B16>Formulario!$F$20,0,PMT((Formulario!$F$19),Formulario!$F$20,-Formulario!$F$34)) -> 0 | T16: 0 | U16: =T15*Formulario!$F$19 -> 0 | V16: 0
B17: 13 | D17: =-(G17+IF(B17>Formulario!$F$20,0,($P$4/Formulario!$F$20))) -> -1331988.626 | E17: =-IF(B17>Formulario!$F$20,0,(G17+($P$4/Formulario!$F$20))) -> -1331988.626 | G17: =IF(B17>Formulario!$F$20,0,PMT((Formulario!$F$19),Formulario!$F$20,-Formulario!$F$18)) -> 1283188.626 | H17: 26859530.22 | I17: =H16*Formulario!$F$19 -> 223354.9115 | J17: 1059833.715 | K17: =IF(B17>Formulario!$F$20,0,PMT((Formulario!$F$19),Formulario!$F$20,-Formulario!$F$24)) -> 0 | L17: 0 | M17: =L16*Formulario!$F$19 -> 0 | N17: 0 | O17: =IF(B17>Formulario!$F$20,0,PMT((Formulario!$F$19),Formulario!$F$20,-Formulario!$F$33)) -> 56357.64445 | P17: 1179670.567 | Q17: =P16*Formulario!$F$19 -> 9809.747712 | R17: 46547.89674 | S17: =IF(B17>Formulario!$F$20,0,PMT((Formulario!$F$19),Formulario!$F$20,-Formulario!$F$34)) -> 0 | T17: 0 | U17: =T16*Formulario!$F$19 -> 0 | V17: 0
B18: 14 | D18: =-(G18+IF(B18>Formulario!$F$20,0,($P$4/Formulario!$F$20))) -> -1331988.626 | E18: =-IF(B18>Formulario!$F$20,0,(G18+($P$4/Formulario!$F$20))) -> -1331988.626 | G18: =IF(B18>Formulario!$F$20,0,PMT((Formulario!$F$19),Formulario!$F$20,-Formulario!$F$18)) -> 1283188.626 | H18: 25791217.83 | I18: =H17*Formulario!$F$19 -> 214876.2418 | J18: 1068312.384 | K18: =IF(B18>Formulario!$F$20,0,PMT((Formulario!$F$19),Formulario!$F$20,-Formulario!$F$24)) -> 0 | L18: 0 | M18: =L17*Formulario!$F$19 -> 0 | N18: 0 | O18: =IF(B18>Formulario!$F$20,0,PMT((Formulario!$F$19),Formulario!$F$20,-Formulario!$F$33)) -> 56357.64445 | P18: 1132750.287 | Q18: =P17*Formulario!$F$19 -> 9437.364538 | R18: 46920.27992 | S18: =IF(B18>Formulario!$F$20,0,PMT((Formulario!$F$19),Formulario!$F$20,-Formulario!$F$34)) -> 0 | T18: 0 | U18: =T17*Formulario!$F$19 -> 0 | V18: 0
B19: 15 | D19: =-(G19+IF(B19>Formulario!$F$20,0,($P$4/Formulario!$F$20))) -> -1331988.626 | E19: =-IF(B19>Formulario!$F$20,0,(G19+($P$4/Formulario!$F$20))) -> -1331988.626 | G19: =IF(B19>Formulario!$F$20,0,PMT((Formulario!$F$19),Formulario!$F$20,-Formulario!$F$18)) -> 1283188.626 | H19: 24714358.95 | I19: =H18*Formulario!$F$19 -> 206329.7427 | J19: 1076858.883 | K19: =IF(B19>Formulario!$F$20,0,PMT((Formulario!$F$19),Formulario!$F$20,-Formulario!$F$24)) -> 0 | L19: 0 | M19: =L18*Formulario!$F$19 -> 0 | N19: 0 | O19: =IF(B19>Formulario!$F$20,0,PMT((Formulario!$F$19),Formulario!$F$20,-Formulario!$F$33)) -> 56357.64445 | P19: 1085454.645 | Q19: =P18*Formulario!$F$19 -> 9062.002298 | R19: 47295.64215 | S19: =IF(B19>Formulario!$F$20,0,PMT((Formulario!$F$19),Formulario!$F$20,-Formulario!$F$34)) -> 0 | T19: 0 | U19: =T18*Formulario!$F$19 -> 0 | V19: 0
B20: 16 | D20: =-(G20+IF(B20>Formulario!$F$20,0,($P$4/Formulario!$F$20))) -> -1331988.626 | E20: =-IF(B20>Formulario!$F$20,0,(G20+($P$4/Formulario!$F$20))) -> -1331988.626 | G20: =IF(B20>Formulario!$F$20,0,PMT((Formulario!$F$19),Formulario!$F$20,-Formulario!$F$18)) -> 1283188.626 | H20: 23628885.2 | I20: =H19*Formulario!$F$19 -> 197714.8716 | J20: 1085473.754 | K20: =IF(B20>Formulario!$F$20,0,PMT((Formulario!$F$19),Formulario!$F$20,-Formulario!$F$24)) -> 0 | L20: 0 | M20: =L19*Formulario!$F$19 -> 0 | N20: 0 | O20: =IF(B20>Formulario!$F$20,0,PMT((Formulario!$F$19),Formulario!$F$20,-Formulario!$F$33)) -> 56357.64445 | P20: 1037780.638 | Q20: =P19*Formulario!$F$19 -> 8683.637161 | R20: 47674.00729 | S20: =IF(B20>Formulario!$F$20,0,PMT((Formulario!$F$19),Formulario!$F$20,-Formulario!$F$34)) -> 0 | T20: 0 | U20: =T19*Formulario!$F$19 -> 0 | V20: 0
B21: 17 | D21: =-(G21+IF(B21>Formulario!$F$20,0,($P$4/Formulario!$F$20))) -> -1331988.626 | E21: =-IF(B21>Formulario!$F$20,0,(G21+($P$4/Formulario!$F$20))) -> -1331988.626 | G21: =IF(B21>Formulario!$F$20,0,PMT((Formulario!$F$19),Formulario!$F$20,-Formulario!$F$18)) -> 1283188.626 | H21: 22534727.65 | I21: =H20*Formulario!$F$19 -> 189031.0816 | J21: 1094157.544 | K21: =IF(B21>Formulario!$F$20,0,PMT((Formulario!$F$19),Formulario!$F$20,-Formulario!$F$24)) -> 0 | L21: 0 | M21: =L20*Formulario!$F$19 -> 0 | N21: 0 | O21: =IF(B21>Formulario!$F$20,0,PMT((Formulario!$F$19),Formulario!$F$20,-Formulario!$F$33)) -> 56357.64445 | P21: 989725.2385 | Q21: =P20*Formulario!$F$19 -> 8302.245103 | R21: 48055.39935 | S21: =IF(B21>Formulario!$F$20,0,PMT((Formulario!$F$19),Formulario!$F$20,-Formulario!$F$34)) -> 0 | T21: 0 | U21: =T20*Formulario!$F$19 -> 0 | V21: 0
B22: 18 | D22: =-(G22+IF(B22>Formulario!$F$20,0,($P$4/Formulario!$F$20))) -> -1331988.626 | E22: =-IF(B22>Formulario!$F$20,0,(G22+($P$4/Formulario!$F$20))) -> -1331988.626 | G22: =IF(B22>Formulario!$F$20,0,PMT((Formulario!$F$19),Formulario!$F$20,-Formulario!$F$18)) -> 1283188.626 | H22: 21431816.85 | I22: =H21*Formulario!$F$19 -> 180277.8212 | J22: 1102910.805 | K22: =IF(B22>Formulario!$F$20,0,PMT((Formulario!$F$19),Formulario!$F$20,-Formulario!$F$24)) -> 0 | L22: 0 | M22: =L21*Formulario!$F$19 -> 0 | N22: 0 | O22: =IF(B22>Formulario!$F$20,0,PMT((Formulario!$F$19),Formulario!$F$20,-Formulario!$F$33)) -> 56357.64445 | P22: 941285.396 | Q22: =P21*Formulario!$F$19 -> 7917.801908 | R22: 48439.84254 | S22: =IF(B22>Formulario!$F$20,0,PMT((Formulario!$F$19),Formulario!$F$20,-Formulario!$F$34)) -> 0 | T22: 0 | U22: =T21*Formulario!$F$19 -> 0 | V22: 0
B23: 19 | D23: =-(G23+IF(B23>Formulario!$F$20,0,($P$4/Formulario!$F$20))) -> -1331988.626 | E23: =-IF(B23>Formulario!$F$20,0,(G23+($P$4/Formulario!$F$20))) -> -1331988.626 | G23: =IF(B23>Formulario!$F$20,0,PMT((Formulario!$F$19),Formulario!$F$20,-Formulario!$F$18)) -> 1283188.626 | H23: 20320082.76 | I23: =H22*Formulario!$F$19 -> 171454.5348 | J23: 1111734.091 | K23: =IF(B23>Formulario!$F$20,0,PMT((Formulario!$F$19),Formulario!$F$20,-Formulario!$F$24)) -> 0 | L23: 0 | M23: =L22*Formulario!$F$19 -> 0 | N23: 0 | O23: =IF(B23>Formulario!$F$20,0,PMT((Formulario!$F$19),Formulario!$F$20,-Formulario!$F$33)) -> 56357.64445 | P23: 892458.0347 | Q23: =P22*Formulario!$F$19 -> 7530.283168 | R23: 48827.36129 | S23: =IF(B23>Formulario!$F$20,0,PMT((Formulario!$F$19),Formulario!$F$20,-Formulario!$F$34)) -> 0 | T23: 0 | U23: =T22*Formulario!$F$19 -> 0 | V23: 0
B24: 20 | D24: =-(G24+IF(B24>Formulario!$F$20,0,($P$4/Formulario!$F$20))) -> -1331988.626 | E24: =-IF(B24>Formulario!$F$20,0,(G24+($P$4/Formulario!$F$20))) -> -1331988.626 | G24: =IF(B24>Formulario!$F$20,0,PMT((Formulario!$F$19),Formulario!$F$20,-Formulario!$F$18)) -> 1283188.626 | H24: 19199454.79 | I24: =H23*Formulario!$F$19 -> 162560.6621 | J24: 1120627.964 | K24: =IF(B24>Formulario!$F$20,0,PMT((Formulario!$F$19),Formulario!$F$20,-Formulario!$F$24)) -> 0 | L24: 0 | M24: =L23*Formulario!$F$19 -> 0 | N24: 0 | O24: =IF(B24>Formulario!$F$20,0,PMT((Formulario!$F$19),Formulario!$F$20,-Formulario!$F$33)) -> 56357.64445 | P24: 843240.0545 | Q24: =P23*Formulario!$F$19 -> 7139.664277 | R24: 49217.98018 | S24: =IF(B24>Formulario!$F$20,0,PMT((Formulario!$F$19),Formulario!$F$20,-Formulario!$F$34)) -> 0 | T24: 0 | U24: =T23*Formulario!$F$19 -> 0 | V24: 0
B25: 21 | D25: =-(G25+IF(B25>Formulario!$F$20,0,($P$4/Formulario!$F$20))) -> -1331988.626 | E25: =-IF(B25>Formulario!$F$20,0,(G25+($P$4/Formulario!$F$20))) -> -1331988.626 | G25: =IF(B25>Formulario!$F$20,0,PMT((Formulario!$F$19),Formulario!$F$20,-Formulario!$F$18)) -> 1283188.626 | H25: 18069861.81 | I25: =H24*Formulario!$F$19 -> 153595.6383 | J25: 1129592.988 | K25: =IF(B25>Formulario!$F$20,0,PMT((Formulario!$F$19),Formulario!$F$20,-Formulario!$F$24)) -> 0 | L25: 0 | M25: =L24*Formulario!$F$19 -> 0 | N25: 0 | O25: =IF(B25>Formulario!$F$20,0,PMT((Formulario!$F$19),Formulario!$F$20,-Formulario!$F$33)) -> 56357.64445 | P25: 793628.3305 | Q25: =P24*Formulario!$F$19 -> 6745.920436 | R25: 49611.72402 | S25: =IF(B25>Formulario!$F$20,0,PMT((Formulario!$F$19),Formulario!$F$20,-Formulario!$F$34)) -> 0 | T25: 0 | U25: =T24*Formulario!$F$19 -> 0 | V25: 0
B26: 22 | D26: =-(G26+IF(B26>Formulario!$F$20,0,($P$4/Formulario!$F$20))) -> -1331988.626 | E26: =-IF(B26>Formulario!$F$20,0,(G26+($P$4/Formulario!$F$20))) -> -1331988.626 | G26: =IF(B26>Formulario!$F$20,0,PMT((Formulario!$F$19),Formulario!$F$20,-Formulario!$F$18)) -> 1283188.626 | H26: 16931232.07 | I26: =H25*Formulario!$F$19 -> 144558.8944 | J26: 1138629.732 | K26: =IF(B26>Formulario!$F$20,0,PMT((Formulario!$F$19),Formulario!$F$20,-Formulario!$F$24)) -> 0 | L26: 0 | M26: =L25*Formulario!$F$19 -> 0 | N26: 0 | O26: =IF(B26>Formulario!$F$20,0,PMT((Formulario!$F$19),Formulario!$F$20,-Formulario!$F$33)) -> 56357.64445 | P26: 743619.7127 | Q26: =P25*Formulario!$F$19 -> 6349.026644 | R26: 50008.61781 | S26: =IF(B26>Formulario!$F$20,0,PMT((Formulario!$F$19),Formulario!$F$20,-Formulario!$F$34)) -> 0 | T26: 0 | U26: =T25*Formulario!$F$19 -> 0 | V26: 0
B27: 23 | D27: =-(G27+IF(B27>Formulario!$F$20,0,($P$4/Formulario!$F$20))) -> -1331988.626 | E27: =-IF(B27>Formulario!$F$20,0,(G27+($P$4/Formulario!$F$20))) -> -1331988.626 | G27: =IF(B27>Formulario!$F$20,0,PMT((Formulario!$F$19),Formulario!$F$20,-Formulario!$F$18)) -> 1283188.626 | H27: 15783493.3 | I27: =H26*Formulario!$F$19 -> 135449.8566 | J27: 1147738.769 | K27: =IF(B27>Formulario!$F$20,0,PMT((Formulario!$F$19),Formulario!$F$20,-Formulario!$F$24)) -> 0 | L27: 0 | M27: =L26*Formulario!$F$19 -> 0 | N27: 0 | O27: =IF(B27>Formulario!$F$20,0,PMT((Formulario!$F$19),Formulario!$F$20,-Formulario!$F$33)) -> 56357.64445 | P27: 693211.0259 | Q27: =P26*Formulario!$F$19 -> 5948.957701 | R27: 50408.68675 | S27: =IF(B27>Formulario!$F$20,0,PMT((Formulario!$F$19),Formulario!$F$20,-Formulario!$F$34)) -> 0 | T27: 0 | U27: =T26*Formulario!$F$19 -> 0 | V27: 0
B28: 24 | D28: =-(G28+IF(B28>Formulario!$F$20,0,($P$4/Formulario!$F$20))) -> -1331988.626 | E28: =-IF(B28>Formulario!$F$20,0,(G28+($P$4/Formulario!$F$20))) -> -1331988.626 | G28: =IF(B28>Formulario!$F$20,0,PMT((Formulario!$F$19),Formulario!$F$20,-Formulario!$F$18)) -> 1283188.626 | H28: 14626572.62 | I28: =H27*Formulario!$F$19 -> 126267.9464 | J28: 1156920.68 | K28: =IF(B28>Formulario!$F$20,0,PMT((Formulario!$F$19),Formulario!$F$20,-Formulario!$F$24)) -> 0 | L28: 0 | M28: =L27*Formulario!$F$19 -> 0 | N28: 0 | O28: =IF(B28>Formulario!$F$20,0,PMT((Formulario!$F$19),Formulario!$F$20,-Formulario!$F$33)) -> 56357.64445 | P28: 642399.0697 | Q28: =P27*Formulario!$F$19 -> 5545.688207 | R28: 50811.95625 | S28: =IF(B28>Formulario!$F$20,0,PMT((Formulario!$F$19),Formulario!$F$20,-Formulario!$F$34)) -> 0 | T28: 0 | U28: =T27*Formulario!$F$19 -> 0 | V28: 0
B29: 25 | D29: =-(G29+IF(B29>Formulario!$F$20,0,($P$4/Formulario!$F$20))) -> -1331988.626 | E29: =-IF(B29>Formulario!$F$20,0,(G29+($P$4/Formulario!$F$20))) -> -1331988.626 | G29: =IF(B29>Formulario!$F$20,0,PMT((Formulario!$F$19),Formulario!$F$20,-Formulario!$F$18)) -> 1283188.626 | H29: 13460396.58 | I29: =H28*Formulario!$F$19 -> 117012.581 | J29: 1166176.045 | K29: =IF(B29>Formulario!$F$20,0,PMT((Formulario!$F$19),Formulario!$F$20,-Formulario!$F$24)) -> 0 | L29: 0 | M29: =L28*Formulario!$F$19 -> 0 | N29: 0 | O29: =IF(B29>Formulario!$F$20,0,PMT((Formulario!$F$19),Formulario!$F$20,-Formulario!$F$33)) -> 56357.64445 | P29: 591180.6178 | Q29: =P28*Formulario!$F$19 -> 5139.192557 | R29: 51218.4519 | S29: =IF(B29>Formulario!$F$20,0,PMT((Formulario!$F$19),Formulario!$F$20,-Formulario!$F$34)) -> 0 | T29: 0 | U29: =T28*Formulario!$F$19 -> 0 | V29: 0
B30: 26 | D30: =-(G30+IF(B30>Formulario!$F$20,0,($P$4/Formulario!$F$20))) -> -1331988.626 | E30: =-IF(B30>Formulario!$F$20,0,(G30+($P$4/Formulario!$F$20))) -> -1331988.626 | G30: =IF(B30>Formulario!$F$20,0,PMT((Formulario!$F$19),Formulario!$F$20,-Formulario!$F$18)) -> 1283188.626 | H30: 12284891.13 | I30: =H29*Formulario!$F$19 -> 107683.1726 | J30: 1175505.453 | K30: =IF(B30>Formulario!$F$20,0,PMT((Formulario!$F$19),Formulario!$F$20,-Formulario!$F$24)) -> 0 | L30: 0 | M30: =L29*Formulario!$F$19 -> 0 | N30: 0 | O30: =IF(B30>Formulario!$F$20,0,PMT((Formulario!$F$19),Formulario!$F$20,-Formulario!$F$33)) -> 56357.64445 | P30: 539552.4183 | Q30: =P29*Formulario!$F$19 -> 4729.444942 | R30: 51628.19951 | S30: =IF(B30>Formulario!$F$20,0,PMT((Formulario!$F$19),Formulario!$F$20,-Formulario!$F$34)) -> 0 | T30: 0 | U30: =T29*Formulario!$F$19 -> 0 | V30: 0
B31: 27 | D31: =-(G31+IF(B31>Formulario!$F$20,0,($P$4/Formulario!$F$20))) -> -1331988.626 | E31: =-IF(B31>Formulario!$F$20,0,(G31+($P$4/Formulario!$F$20))) -> -1331988.626 | G31: =IF(B31>Formulario!$F$20,0,PMT((Formulario!$F$19),Formulario!$F$20,-Formulario!$F$18)) -> 1283188.626 | H31: 11099981.63 | I31: =H30*Formulario!$F$19 -> 98279.12901 | J31: 1184909.497 | K31: =IF(B31>Formulario!$F$20,0,PMT((Formulario!$F$19),Formulario!$F$20,-Formulario!$F$24)) -> 0 | L31: 0 | M31: =L30*Formulario!$F$19 -> 0 | N31: 0 | O31: =IF(B31>Formulario!$F$20,0,PMT((Formulario!$F$19),Formulario!$F$20,-Formulario!$F$33)) -> 56357.64445 | P31: 487511.1932 | Q31: =P30*Formulario!$F$19 -> 4316.419346 | R31: 52041.22511 | S31: =IF(B31>Formulario!$F$20,0,PMT((Formulario!$F$19),Formulario!$F$20,-Formulario!$F$34)) -> 0 | T31: 0 | U31: =T30*Formulario!$F$19 -> 0 | V31: 0
B32: 28 | D32: =-(G32+IF(B32>Formulario!$F$20,0,($P$4/Formulario!$F$20))) -> -1331988.626 | E32: =-IF(B32>Formulario!$F$20,0,(G32+($P$4/Formulario!$F$20))) -> -1331988.626 | G32: =IF(B32>Formulario!$F$20,0,PMT((Formulario!$F$19),Formulario!$F$20,-Formulario!$F$18)) -> 1283188.626 | H32: 9905592.856 | I32: =H31*Formulario!$F$19 -> 88799.85303 | J32: 1194388.773 | K32: =IF(B32>Formulario!$F$20,0,PMT((Formulario!$F$19),Formulario!$F$20,-Formulario!$F$24)) -> 0 | L32: 0 | M32: =L31*Formulario!$F$19 -> 0 | N32: 0 | O32: =IF(B32>Formulario!$F$20,0,PMT((Formulario!$F$19),Formulario!$F$20,-Formulario!$F$33)) -> 56357.64445 | P32: 435053.6383 | Q32: =P31*Formulario!$F$19 -> 3900.089545 | R32: 52457.55491 | S32: =IF(B32>Formulario!$F$20,0,PMT((Formulario!$F$19),Formulario!$F$20,-Formulario!$F$34)) -> 0 | T32: 0 | U32: =T31*Formulario!$F$19 -> 0 | V32: 0
B33: 29 | D33: =-(G33+IF(B33>Formulario!$F$20,0,($P$4/Formulario!$F$20))) -> -1331988.626 | E33: =-IF(B33>Formulario!$F$20,0,(G33+($P$4/Formulario!$F$20))) -> -1331988.626 | G33: =IF(B33>Formulario!$F$20,0,PMT((Formulario!$F$19),Formulario!$F$20,-Formulario!$F$18)) -> 1283188.626 | H33: 8701648.973 | I33: =H32*Formulario!$F$19 -> 79244.74285 | J33: 1203943.883 | K33: =IF(B33>Formulario!$F$20,0,PMT((Formulario!$F$19),Formulario!$F$20,-Formulario!$F$24)) -> 0 | L33: 0 | M33: =L32*Formulario!$F$19 -> 0 | N33: 0 | O33: =IF(B33>Formulario!$F$20,0,PMT((Formulario!$F$19),Formulario!$F$20,-Formulario!$F$33)) -> 56357.64445 | P33: 382176.4229 | Q33: =P32*Formulario!$F$19 -> 3480.429106 | R33: 52877.21535 | S33: =IF(B33>Formulario!$F$20,0,PMT((Formulario!$F$19),Formulario!$F$20,-Formulario!$F$34)) -> 0 | T33: 0 | U33: =T32*Formulario!$F$19 -> 0 | V33: 0
B34: 30 | D34: =-(G34+IF(B34>Formulario!$F$20,0,($P$4/Formulario!$F$20))) -> -1331988.626 | E34: =-IF(B34>Formulario!$F$20,0,(G34+($P$4/Formulario!$F$20))) -> -1331988.626 | G34: =IF(B34>Formulario!$F$20,0,PMT((Formulario!$F$19),Formulario!$F$20,-Formulario!$F$18)) -> 1283188.626 | H34: 7488073.539 | I34: =H33*Formulario!$F$19 -> 69613.19179 | J34: 1213575.434 | K34: =IF(B34>Formulario!$F$20,0,PMT((Formulario!$F$19),Formulario!$F$20,-Formulario!$F$24)) -> 0 | L34: 0 | M34: =L33*Formulario!$F$19 -> 0 | N34: 0 | O34: =IF(B34>Formulario!$F$20,0,PMT((Formulario!$F$19),Formulario!$F$20,-Formulario!$F$33)) -> 56357.64445 | P34: 328876.1898 | Q34: =P33*Formulario!$F$19 -> 3057.411383 | R34: 53300.23307 | S34: =IF(B34>Formulario!$F$20,0,PMT((Formulario!$F$19),Formulario!$F$20,-Formulario!$F$34)) -> 0 | T34: 0 | U34: =T33*Formulario!$F$19 -> 0 | V34: 0
B35: 31 | D35: =-(G35+IF(B35>Formulario!$F$20,0,($P$4/Formulario!$F$20))) -> -1331988.626 | E35: =-IF(B35>Formulario!$F$20,0,(G35+($P$4/Formulario!$F$20))) -> -1331988.626 | G35: =IF(B35>Formulario!$F$20,0,PMT((Formulario!$F$19),Formulario!$F$20,-Formulario!$F$18)) -> 1283188.626 | H35: 6264789.501 | I35: =H34*Formulario!$F$19 -> 59904.58831 | J35: 1223284.038 | K35: =IF(B35>Formulario!$F$20,0,PMT((Formulario!$F$19),Formulario!$F$20,-Formulario!$F$24)) -> 0 | L35: 0 | M35: =L34*Formulario!$F$19 -> 0 | N35: 0 | O35: =IF(B35>Formulario!$F$20,0,PMT((Formulario!$F$19),Formulario!$F$20,-Formulario!$F$33)) -> 56357.64445 | P35: 275149.5549 | Q35: =P34*Formulario!$F$19 -> 2631.009519 | R35: 53726.63493 | S35: =IF(B35>Formulario!$F$20,0,PMT((Formulario!$F$19),Formulario!$F$20,-Formulario!$F$34)) -> 0 | T35: 0 | U35: =T34*Formulario!$F$19 -> 0 | V35: 0
B36: 32 | D36: =-(G36+IF(B36>Formulario!$F$20,0,($P$4/Formulario!$F$20))) -> -1331988.626 | E36: =-IF(B36>Formulario!$F$20,0,(G36+($P$4/Formulario!$F$20))) -> -1331988.626 | G36: =IF(B36>Formulario!$F$20,0,PMT((Formulario!$F$19),Formulario!$F$20,-Formulario!$F$18)) -> 1283188.626 | H36: 5031719.191 | I36: =H35*Formulario!$F$19 -> 50118.31601 | J36: 1233070.31 | K36: =IF(B36>Formulario!$F$20,0,PMT((Formulario!$F$19),Formulario!$F$20,-Formulario!$F$24)) -> 0 | L36: 0 | M36: =L35*Formulario!$F$19 -> 0 | N36: 0 | O36: =IF(B36>Formulario!$F$20,0,PMT((Formulario!$F$19),Formulario!$F$20,-Formulario!$F$33)) -> 56357.64445 | P36: 220993.1069 | Q36: =P35*Formulario!$F$19 -> 2201.196439 | R36: 54156.44801 | S36: =IF(B36>Formulario!$F$20,0,PMT((Formulario!$F$19),Formulario!$F$20,-Formulario!$F$34)) -> 0 | T36: 0 | U36: =T35*Formulario!$F$19 -> 0 | V36: 0
B37: 33 | D37: =-(G37+IF(B37>Formulario!$F$20,0,($P$4/Formulario!$F$20))) -> -1331988.626 | E37: =-IF(B37>Formulario!$F$20,0,(G37+($P$4/Formulario!$F$20))) -> -1331988.626 | G37: =IF(B37>Formulario!$F$20,0,PMT((Formulario!$F$19),Formulario!$F$20,-Formulario!$F$18)) -> 1283188.626 | H37: 3788784.319 | I37: =H36*Formulario!$F$19 -> 40253.75353 | J37: 1242934.872 | K37: =IF(B37>Formulario!$F$20,0,PMT((Formulario!$F$19),Formulario!$F$20,-Formulario!$F$24)) -> 0 | L37: 0 | M37: =L36*Formulario!$F$19 -> 0 | N37: 0 | O37: =IF(B37>Formulario!$F$20,0,PMT((Formulario!$F$19),Formulario!$F$20,-Formulario!$F$33)) -> 56357.64445 | P37: 166403.4073 | Q37: =P36*Formulario!$F$19 -> 1767.944855 | R37: 54589.6996 | S37: =IF(B37>Formulario!$F$20,0,PMT((Formulario!$F$19),Formulario!$F$20,-Formulario!$F$34)) -> 0 | T37: 0 | U37: =T36*Formulario!$F$19 -> 0 | V37: 0
B38: 34 | D38: =-(G38+IF(B38>Formulario!$F$20,0,($P$4/Formulario!$F$20))) -> -1331988.626 | E38: =-IF(B38>Formulario!$F$20,0,(G38+($P$4/Formulario!$F$20))) -> -1331988.626 | G38: =IF(B38>Formulario!$F$20,0,PMT((Formulario!$F$19),Formulario!$F$20,-Formulario!$F$18)) -> 1283188.626 | H38: 2535905.968 | I38: =H37*Formulario!$F$19 -> 30310.27455 | J38: 1252878.351 | K38: =IF(B38>Formulario!$F$20,0,PMT((Formulario!$F$19),Formulario!$F$20,-Formulario!$F$24)) -> 0 | L38: 0 | M38: =L37*Formulario!$F$19 -> 0 | N38: 0 | O38: =IF(B38>Formulario!$F$20,0,PMT((Formulario!$F$19),Formulario!$F$20,-Formulario!$F$33)) -> 56357.64445 | P38: 111376.9901 | Q38: =P37*Formulario!$F$19 -> 1331.227258 | R38: 55026.41719 | S38: =IF(B38>Formulario!$F$20,0,PMT((Formulario!$F$19),Formulario!$F$20,-Formulario!$F$34)) -> 0 | T38: =IF(B38>$B$16,0,IF($B$39="Prima Mes",0,IF($B$39="Prima Anual",IF(AND(B38<12,OR(B38=0,B38=12,B38=24,B38=36,B38=48,B38=60,B38=72)),$B$41,T37-V38),IF(B38=0,$B$41,T37-V38)))) -> 0 | U38: =T37*Formulario!$F$19 -> 0 | V38: 0
B39: 35 | D39: =-(G39+IF(B39>Formulario!$F$20,0,($P$4/Formulario!$F$20))) -> -1331988.626 | E39: =-IF(B39>Formulario!$F$20,0,(G39+($P$4/Formulario!$F$20))) -> -1331988.626 | G39: =IF(B39>Formulario!$F$20,0,PMT((Formulario!$F$19),Formulario!$F$20,-Formulario!$F$18)) -> 1283188.626 | H39: 1273004.589 | I39: =H38*Formulario!$F$19 -> 20287.24774 | J39: 1262901.378 | K39: =IF(B39>Formulario!$F$20,0,PMT((Formulario!$F$19),Formulario!$F$20,-Formulario!$F$24)) -> 0 | L39: 0 | M39: =L38*Formulario!$F$19 -> 0 | N39: 0 | O39: =IF(B39>Formulario!$F$20,0,PMT((Formulario!$F$19),Formulario!$F$20,-Formulario!$F$33)) -> 56357.64445 | P39: 55910.36156 | Q39: =P38*Formulario!$F$19 -> 891.0159207 | R39: 55466.62853 | S39: =IF(B39>Formulario!$F$20,0,PMT((Formulario!$F$19),Formulario!$F$20,-Formulario!$F$34)) -> 0 | T39: 0 | U39: =T38*Formulario!$F$19 -> 0 | V39: 0
B40: 36 | D40: =-(G40+IF(B40>Formulario!$F$20,0,($P$4/Formulario!$F$20))) -> -1331988.626 | E40: =-IF(B40>Formulario!$F$20,0,(G40+($P$4/Formulario!$F$20))) -> -1331988.626 | G40: =IF(B40>Formulario!$F$20,0,PMT((Formulario!$F$19),Formulario!$F$20,-Formulario!$F$18)) -> 1283188.626 | H40: 7.217749953e-09 | I40: =H39*Formulario!$F$19 -> 10184.03671 | J40: 1273004.589 | K40: =IF(B40>Formulario!$F$20,0,PMT((Formulario!$F$19),Formulario!$F$20,-Formulario!$F$24)) -> 0 | L40: 0 | M40: =L39*Formulario!$F$19 -> 0 | N40: 0 | O40: =IF(B40>Formulario!$F$20,0,PMT((Formulario!$F$19),Formulario!$F$20,-Formulario!$F$33)) -> 56357.64445 | P40: -8.731149137e-11 | Q40: =P39*Formulario!$F$19 -> 447.2828925 | R40: 55910.36156 | S40: =IF(B40>Formulario!$F$20,0,PMT((Formulario!$F$19),Formulario!$F$20,-Formulario!$F$34)) -> 0 | T40: 0 | U40: =T39*Formulario!$F$19 -> 0 | V40: 0
B41: 37 | D41: =-(G41+IF(B41>Formulario!$F$20,0,($P$4/Formulario!$F$20))) -> 0 | E41: =-IF(B41>Formulario!$F$20,0,(G41+($P$4/Formulario!$F$20))) -> 0 | G41: =IF(B41>Formulario!$F$20,0,PMT((Formulario!$F$19),Formulario!$F$20,-Formulario!$F$18)) -> 0 | H41: 7.275491953e-09 | I41: =H40*Formulario!$F$19 -> 5.774199963e-11 | J41: -5.774199963e-11 | K41: =IF(B41>Formulario!$F$20,0,PMT((Formulario!$F$19),Formulario!$F$20,-Formulario!$F$24)) -> 0 | L41: 0 | M41: =L40*Formulario!$F$19 -> 0 | N41: 0 | O41: =IF(B41>Formulario!$F$20,0,PMT((Formulario!$F$19),Formulario!$F$20,-Formulario!$F$33)) -> 0 | P41: -8.80099833e-11 | Q41: =P40*Formulario!$F$19 -> -6.98491931e-13 | R41: 6.98491931e-13 | S41: =IF(B41>Formulario!$F$20,0,PMT((Formulario!$F$19),Formulario!$F$20,-Formulario!$F$34)) -> 0 | T41: 0 | U41: =T40*Formulario!$F$19 -> 0 | V41: 0
B42: 38 | D42: =-(G42+IF(B42>Formulario!$F$20,0,($P$4/Formulario!$F$20))) -> 0 | E42: =-IF(B42>Formulario!$F$20,0,(G42+($P$4/Formulario!$F$20))) -> 0 | G42: =IF(B42>Formulario!$F$20,0,PMT((Formulario!$F$19),Formulario!$F$20,-Formulario!$F$18)) -> 0 | H42: 7.333695889e-09 | I42: =H41*Formulario!$F$19 -> 5.820393562e-11 | J42: -5.820393562e-11 | K42: =IF(B42>Formulario!$F$20,0,PMT((Formulario!$F$19),Formulario!$F$20,-Formulario!$F$24)) -> 0 | L42: 0 | M42: =L41*Formulario!$F$19 -> 0 | N42: 0 | O42: =IF(B42>Formulario!$F$20,0,PMT((Formulario!$F$19),Formulario!$F$20,-Formulario!$F$33)) -> 0 | P42: -8.871406317e-11 | Q42: =P41*Formulario!$F$19 -> -7.040798664e-13 | R42: 7.040798664e-13 | S42: =IF(B42>Formulario!$F$20,0,PMT((Formulario!$F$19),Formulario!$F$20,-Formulario!$F$34)) -> 0 | T42: 0 | U42: =T41*Formulario!$F$19 -> 0 | V42: 0
B43: 39 | D43: =-(G43+IF(B43>Formulario!$F$20,0,($P$4/Formulario!$F$20))) -> 0 | E43: =-IF(B43>Formulario!$F$20,0,(G43+($P$4/Formulario!$F$20))) -> 0 | G43: =IF(B43>Formulario!$F$20,0,PMT((Formulario!$F$19),Formulario!$F$20,-Formulario!$F$18)) -> 0 | H43: 7.392365456e-09 | I43: =H42*Formulario!$F$19 -> 5.866956711e-11 | J43: -5.866956711e-11 | K43: =IF(B43>Formulario!$F$20,0,PMT((Formulario!$F$19),Formulario!$F$20,-Formulario!$F$24)) -> 0 | L43: 0 | M43: =L42*Formulario!$F$19 -> 0 | N43: 0 | O43: =IF(B43>Formulario!$F$20,0,PMT((Formulario!$F$19),Formulario!$F$20,-Formulario!$F$33)) -> 0 | P43: -8.942377567e-11 | Q43: =P42*Formulario!$F$19 -> -7.097125053e-13 | R43: 7.097125053e-13 | S43: =IF(B43>Formulario!$F$20,0,PMT((Formulario!$F$19),Formulario!$F$20,-Formulario!$F$34)) -> 0 | T43: 0 | U43: =T42*Formulario!$F$19 -> 0 | V43: 0
B44: 40 | D44: =-(G44+IF(B44>Formulario!$F$20,0,($P$4/Formulario!$F$20))) -> 0 | E44: =-IF(B44>Formulario!$F$20,0,(G44+($P$4/Formulario!$F$20))) -> 0 | G44: =IF(B44>Formulario!$F$20,0,PMT((Formulario!$F$19),Formulario!$F$20,-Formulario!$F$18)) -> 0 | H44: 7.451504379e-09 | I44: =H43*Formulario!$F$19 -> 5.913892365e-11 | J44: -5.913892365e-11 | K44: =IF(B44>Formulario!$F$20,0,PMT((Formulario!$F$19),Formulario!$F$20,-Formulario!$F$24)) -> 0 | L44: 0 | M44: =L43*Formulario!$F$19 -> 0 | N44: 0 | O44: =IF(B44>Formulario!$F$20,0,PMT((Formulario!$F$19),Formulario!$F$20,-Formulario!$F$33)) -> 0 | P44: -9.013916588e-11 | Q44: =P43*Formulario!$F$19 -> -7.153902054e-13 | R44: 7.153902054e-13 | S44: =IF(B44>Formulario!$F$20,0,PMT((Formulario!$F$19),Formulario!$F$20,-Formulario!$F$34)) -> 0 | T44: 0 | U44: =T43*Formulario!$F$19 -> 0 | V44: 0
B45: 41 | D45: =-(G45+IF(B45>Formulario!$F$20,0,($P$4/Formulario!$F$20))) -> 0 | E45: =-IF(B45>Formulario!$F$20,0,(G45+($P$4/Formulario!$F$20))) -> 0 | G45: =IF(B45>Formulario!$F$20,0,PMT((Formulario!$F$19),Formulario!$F$20,-Formulario!$F$18)) -> 0 | H45: 7.511116414e-09 | I45: =H44*Formulario!$F$19 -> 5.961203503e-11 | J45: -5.961203503e-11 | K45: =IF(B45>Formulario!$F$20,0,PMT((Formulario!$F$19),Formulario!$F$20,-Formulario!$F$24)) -> 0 | L45: 0 | M45: =L44*Formulario!$F$19 -> 0 | N45: 0 | O45: =IF(B45>Formulario!$F$20,0,PMT((Formulario!$F$19),Formulario!$F$20,-Formulario!$F$33)) -> 0 | P45: -9.086027921e-11 | Q45: =P44*Formulario!$F$19 -> -7.21113327e-13 | R45: 7.21113327e-13 | S45: =IF(B45>Formulario!$F$20,0,PMT((Formulario!$F$19),Formulario!$F$20,-Formulario!$F$34)) -> 0 | T45: 0 | U45: =T44*Formulario!$F$19 -> 0 | V45: 0
B46: 42 | D46: =-(G46+IF(B46>Formulario!$F$20,0,($P$4/Formulario!$F$20))) -> 0 | E46: =-IF(B46>Formulario!$F$20,0,(G46+($P$4/Formulario!$F$20))) -> 0 | G46: =IF(B46>Formulario!$F$20,0,PMT((Formulario!$F$19),Formulario!$F$20,-Formulario!$F$18)) -> 0 | H46: 7.571205346e-09 | I46: =H45*Formulario!$F$19 -> 6.008893131e-11 | J46: -6.008893131e-11 | K46: =IF(B46>Formulario!$F$20,0,PMT((Formulario!$F$19),Formulario!$F$20,-Formulario!$F$24)) -> 0 | L46: 0 | M46: =L45*Formulario!$F$19 -> 0 | N46: 0 | O46: =IF(B46>Formulario!$F$20,0,PMT((Formulario!$F$19),Formulario!$F$20,-Formulario!$F$33)) -> 0 | P46: -9.158716144e-11 | Q46: =P45*Formulario!$F$19 -> -7.268822336e-13 | R46: 7.268822336e-13 | S46: =IF(B46>Formulario!$F$20,0,PMT((Formulario!$F$19),Formulario!$F$20,-Formulario!$F$34)) -> 0 | T46: 0 | U46: =T45*Formulario!$F$19 -> 0 | V46: 0
B47: 43 | D47: =-(G47+IF(B47>Formulario!$F$20,0,($P$4/Formulario!$F$20))) -> 0 | E47: =-IF(B47>Formulario!$F$20,0,(G47+($P$4/Formulario!$F$20))) -> 0 | G47: =IF(B47>Formulario!$F$20,0,PMT((Formulario!$F$19),Formulario!$F$20,-Formulario!$F$18)) -> 0 | H47: 7.631774988e-09 | I47: =H46*Formulario!$F$19 -> 6.056964276e-11 | J47: -6.056964276e-11 | K47: =IF(B47>Formulario!$F$20,0,PMT((Formulario!$F$19),Formulario!$F$20,-Formulario!$F$24)) -> 0 | L47: 0 | M47: =L46*Formulario!$F$19 -> 0 | N47: 0 | O47: =IF(B47>Formulario!$F$20,0,PMT((Formulario!$F$19),Formulario!$F$20,-Formulario!$F$33)) -> 0 | P47: -9.231985873e-11 | Q47: =P46*Formulario!$F$19 -> -7.326972915e-13 | R47: 7.326972915e-13 | S47: =IF(B47>Formulario!$F$20,0,PMT((Formulario!$F$19),Formulario!$F$20,-Formulario!$F$34)) -> 0 | T47: 0 | U47: =T46*Formulario!$F$19 -> 0 | V47: 0
B48: 44 | D48: =-(G48+IF(B48>Formulario!$F$20,0,($P$4/Formulario!$F$20))) -> 0 | E48: =-IF(B48>Formulario!$F$20,0,(G48+($P$4/Formulario!$F$20))) -> 0 | G48: =IF(B48>Formulario!$F$20,0,PMT((Formulario!$F$19),Formulario!$F$20,-Formulario!$F$18)) -> 0 | H48: 7.692829188e-09 | I48: =H47*Formulario!$F$19 -> 6.105419991e-11 | J48: -6.105419991e-11 | K48: =IF(B48>Formulario!$F$20,0,PMT((Formulario!$F$19),Formulario!$F$20,-Formulario!$F$24)) -> 0 | L48: 0 | M48: =L47*Formulario!$F$19 -> 0 | N48: 0 | O48: =IF(B48>Formulario!$F$20,0,PMT((Formulario!$F$19),Formulario!$F$20,-Formulario!$F$33)) -> 0 | P48: -9.30584176e-11 | Q48: =P47*Formulario!$F$19 -> -7.385588698e-13 | R48: 7.385588698e-13 | S48: =IF(B48>Formulario!$F$20,0,PMT((Formulario!$F$19),Formulario!$F$20,-Formulario!$F$34)) -> 0 | T48: 0 | U48: =T47*Formulario!$F$19 -> 0 | V48: 0
B49: 45 | D49: =-(G49+IF(B49>Formulario!$F$20,0,($P$4/Formulario!$F$20))) -> 0 | E49: =-IF(B49>Formulario!$F$20,0,(G49+($P$4/Formulario!$F$20))) -> 0 | G49: =IF(B49>Formulario!$F$20,0,PMT((Formulario!$F$19),Formulario!$F$20,-Formulario!$F$18)) -> 0 | H49: 7.754371822e-09 | I49: =H48*Formulario!$F$19 -> 6.154263351e-11 | J49: -6.154263351e-11 | K49: =IF(B49>Formulario!$F$20,0,PMT((Formulario!$F$19),Formulario!$F$20,-Formulario!$F$24)) -> 0 | L49: 0 | M49: =L48*Formulario!$F$19 -> 0 | N49: 0 | O49: =IF(B49>Formulario!$F$20,0,PMT((Formulario!$F$19),Formulario!$F$20,-Formulario!$F$33)) -> 0 | P49: -9.380288494e-11 | Q49: =P48*Formulario!$F$19 -> -7.444673408e-13 | R49: 7.444673408e-13 | S49: =IF(B49>Formulario!$F$20,0,PMT((Formulario!$F$19),Formulario!$F$20,-Formulario!$F$34)) -> 0 | T49: 0 | U49: =T48*Formulario!$F$19 -> 0 | V49: 0
B50: 46 | D50: =-(G50+IF(B50>Formulario!$F$20,0,($P$4/Formulario!$F$20))) -> 0 | E50: =-IF(B50>Formulario!$F$20,0,(G50+($P$4/Formulario!$F$20))) -> 0 | G50: =IF(B50>Formulario!$F$20,0,PMT((Formulario!$F$19),Formulario!$F$20,-Formulario!$F$18)) -> 0 | H50: 7.816406796e-09 | I50: =H49*Formulario!$F$19 -> 6.203497457e-11 | J50: -6.203497457e-11 | K50: =IF(B50>Formulario!$F$20,0,PMT((Formulario!$F$19),Formulario!$F$20,-Formulario!$F$24)) -> 0 | L50: 0 | M50: =L49*Formulario!$F$19 -> 0 | N50: 0 | O50: =IF(B50>Formulario!$F$20,0,PMT((Formulario!$F$19),Formulario!$F$20,-Formulario!$F$33)) -> 0 | P50: -9.455330802e-11 | Q50: =P49*Formulario!$F$19 -> -7.504230795e-13 | R50: 7.504230795e-13 | S50: =IF(B50>Formulario!$F$20,0,PMT((Formulario!$F$19),Formulario!$F$20,-Formulario!$F$34)) -> 0 | T50: 0 | U50: =T49*Formulario!$F$19 -> 0 | V50: 0
B51: 47 | D51: =-(G51+IF(B51>Formulario!$F$20,0,($P$4/Formulario!$F$20))) -> 0 | E51: =-IF(B51>Formulario!$F$20,0,(G51+($P$4/Formulario!$F$20))) -> 0 | G51: =IF(B51>Formulario!$F$20,0,PMT((Formulario!$F$19),Formulario!$F$20,-Formulario!$F$18)) -> 0 | H51: 7.878938051e-09 | I51: =H50*Formulario!$F$19 -> 6.253125437e-11 | J51: -6.253125437e-11 | K51: =IF(B51>Formulario!$F$20,0,PMT((Formulario!$F$19),Formulario!$F$20,-Formulario!$F$24)) -> 0 | L51: 0 | M51: =L50*Formulario!$F$19 -> 0 | N51: 0 | O51: =IF(B51>Formulario!$F$20,0,PMT((Formulario!$F$19),Formulario!$F$20,-Formulario!$F$33)) -> 0 | P51: -9.530973448e-11 | Q51: =P50*Formulario!$F$19 -> -7.564264642e-13 | R51: 7.564264642e-13 | S51: =IF(B51>Formulario!$F$20,0,PMT((Formulario!$F$19),Formulario!$F$20,-Formulario!$F$34)) -> 0 | T51: 0 | U51: =T50*Formulario!$F$19 -> 0 | V51: 0
B52: 48 | D52: =-(G52+IF(B52>Formulario!$F$20,0,($P$4/Formulario!$F$20))) -> 0 | E52: =-IF(B52>Formulario!$F$20,0,(G52+($P$4/Formulario!$F$20))) -> 0 | G52: =IF(B52>Formulario!$F$20,0,PMT((Formulario!$F$19),Formulario!$F$20,-Formulario!$F$18)) -> 0 | H52: 7.941969555e-09 | I52: =H51*Formulario!$F$19 -> 6.303150441e-11 | J52: -6.303150441e-11 | K52: =IF(B52>Formulario!$F$20,0,PMT((Formulario!$F$19),Formulario!$F$20,-Formulario!$F$24)) -> 0 | L52: 0 | M52: =L51*Formulario!$F$19 -> 0 | N52: 0 | O52: =IF(B52>Formulario!$F$20,0,PMT((Formulario!$F$19),Formulario!$F$20,-Formulario!$F$33)) -> 0 | P52: -9.607221236e-11 | Q52: =P51*Formulario!$F$19 -> -7.624778759e-13 | R52: 7.624778759e-13 | S52: =IF(B52>Formulario!$F$20,0,PMT((Formulario!$F$19),Formulario!$F$20,-Formulario!$F$34)) -> 0 | T52: 0 | U52: =T51*Formulario!$F$19 -> 0 | V52: 0
B53: 49 | D53: =-(G53+IF(B53>Formulario!$F$20,0,($P$4/Formulario!$F$20))) -> 0 | E53: =-IF(B53>Formulario!$F$20,0,(G53+($P$4/Formulario!$F$20))) -> 0 | G53: =IF(B53>Formulario!$F$20,0,PMT((Formulario!$F$19),Formulario!$F$20,-Formulario!$F$18)) -> 0 | H53: 8.005505312e-09 | I53: =H52*Formulario!$F$19 -> 6.353575644e-11 | J53: -6.353575644e-11 | K53: =IF(B53>Formulario!$F$20,0,PMT((Formulario!$F$19),Formulario!$F$20,-Formulario!$F$24)) -> 0 | L53: 0 | M53: =L52*Formulario!$F$19 -> 0 | N53: 0 | O53: =IF(B53>Formulario!$F$20,0,PMT((Formulario!$F$19),Formulario!$F$20,-Formulario!$F$33)) -> 0 | P53: -9.684079006e-11 | Q53: =P52*Formulario!$F$19 -> -7.685776989e-13 | R53: 7.685776989e-13 | S53: =IF(B53>Formulario!$F$20,0,PMT((Formulario!$F$19),Formulario!$F$20,-Formulario!$F$34)) -> 0 | T53: 0 | U53: =T52*Formulario!$F$19 -> 0 | V53: 0
B54: 50 | D54: =-(G54+IF(B54>Formulario!$F$20,0,($P$4/Formulario!$F$20))) -> 0 | E54: =-IF(B54>Formulario!$F$20,0,(G54+($P$4/Formulario!$F$20))) -> 0 | G54: =IF(B54>Formulario!$F$20,0,PMT((Formulario!$F$19),Formulario!$F$20,-Formulario!$F$18)) -> 0 | H54: 8.069549354e-09 | I54: =H53*Formulario!$F$19 -> 6.404404249e-11 | J54: -6.404404249e-11 | K54: =IF(B54>Formulario!$F$20,0,PMT((Formulario!$F$19),Formulario!$F$20,-Formulario!$F$24)) -> 0 | L54: 0 | M54: =L53*Formulario!$F$19 -> 0 | N54: 0 | O54: =IF(B54>Formulario!$F$20,0,PMT((Formulario!$F$19),Formulario!$F$20,-Formulario!$F$33)) -> 0 | P54: -9.761551638e-11 | Q54: =P53*Formulario!$F$19 -> -7.747263205e-13 | R54: 7.747263205e-13 | S54: =IF(B54>Formulario!$F$20,0,PMT((Formulario!$F$19),Formulario!$F$20,-Formulario!$F$34)) -> 0 | T54: 0 | U54: =T53*Formulario!$F$19 -> 0 | V54: 0
B55: 51 | D55: =-(G55+IF(B55>Formulario!$F$20,0,($P$4/Formulario!$F$20))) -> 0 | E55: =-IF(B55>Formulario!$F$20,0,(G55+($P$4/Formulario!$F$20))) -> 0 | G55: =IF(B55>Formulario!$F$20,0,PMT((Formulario!$F$19),Formulario!$F$20,-Formulario!$F$18)) -> 0 | H55: 8.134105749e-09 | I55: =H54*Formulario!$F$19 -> 6.455639483e-11 | J55: -6.455639483e-11 | K55: =IF(B55>Formulario!$F$20,0,PMT((Formulario!$F$19),Formulario!$F$20,-Formulario!$F$24)) -> 0 | L55: 0 | M55: =L54*Formulario!$F$19 -> 0 | N55: 0 | O55: =IF(B55>Formulario!$F$20,0,PMT((Formulario!$F$19),Formulario!$F$20,-Formulario!$F$33)) -> 0 | P55: -9.839644051e-11 | Q55: =P54*Formulario!$F$19 -> -7.80924131e-13 | R55: 7.80924131e-13 | S55: =IF(B55>Formulario!$F$20,0,PMT((Formulario!$F$19),Formulario!$F$20,-Formulario!$F$34)) -> 0 | T55: 0 | U55: =T54*Formulario!$F$19 -> 0 | V55: 0
B56: 52 | D56: =-(G56+IF(B56>Formulario!$F$20,0,($P$4/Formulario!$F$20))) -> 0 | E56: =-IF(B56>Formulario!$F$20,0,(G56+($P$4/Formulario!$F$20))) -> 0 | G56: =IF(B56>Formulario!$F$20,0,PMT((Formulario!$F$19),Formulario!$F$20,-Formulario!$F$18)) -> 0 | H56: 8.199178595e-09 | I56: =H55*Formulario!$F$19 -> 6.507284599e-11 | J56: -6.507284599e-11 | K56: =IF(B56>Formulario!$F$20,0,PMT((Formulario!$F$19),Formulario!$F$20,-Formulario!$F$24)) -> 0 | L56: 0 | M56: =L55*Formulario!$F$19 -> 0 | N56: 0 | O56: =IF(B56>Formulario!$F$20,0,PMT((Formulario!$F$19),Formulario!$F$20,-Formulario!$F$33)) -> 0 | P56: -9.918361204e-11 | Q56: =P55*Formulario!$F$19 -> -7.871715241e-13 | R56: 7.871715241e-13 | S56: =IF(B56>Formulario!$F$20,0,PMT((Formulario!$F$19),Formulario!$F$20,-Formulario!$F$34)) -> 0 | T56: 0 | U56: =T55*Formulario!$F$19 -> 0 | V56: 0
B57: 53 | D57: =-(G57+IF(B57>Formulario!$F$20,0,($P$4/Formulario!$F$20))) -> 0 | E57: =-IF(B57>Formulario!$F$20,0,(G57+($P$4/Formulario!$F$20))) -> 0 | G57: =IF(B57>Formulario!$F$20,0,PMT((Formulario!$F$19),Formulario!$F$20,-Formulario!$F$18)) -> 0 | H57: 8.264772024e-09 | I57: =H56*Formulario!$F$19 -> 6.559342876e-11 | J57: -6.559342876e-11 | K57: =IF(B57>Formulario!$F$20,0,PMT((Formulario!$F$19),Formulario!$F$20,-Formulario!$F$24)) -> 0 | L57: 0 | M57: =L56*Formulario!$F$19 -> 0 | N57: 0 | O57: =IF(B57>Formulario!$F$20,0,PMT((Formulario!$F$19),Formulario!$F$20,-Formulario!$F$33)) -> 0 | P57: -9.997708093e-11 | Q57: =P56*Formulario!$F$19 -> -7.934688963e-13 | R57: 7.934688963e-13 | S57: =IF(B57>Formulario!$F$20,0,PMT((Formulario!$F$19),Formulario!$F$20,-Formulario!$F$34)) -> 0 | T57: 0 | U57: =T56*Formulario!$F$19 -> 0 | V57: 0
B58: 54 | D58: =-(G58+IF(B58>Formulario!$F$20,0,($P$4/Formulario!$F$20))) -> 0 | E58: =-IF(B58>Formulario!$F$20,0,(G58+($P$4/Formulario!$F$20))) -> 0 | G58: =IF(B58>Formulario!$F$20,0,PMT((Formulario!$F$19),Formulario!$F$20,-Formulario!$F$18)) -> 0 | H58: 8.3308902e-09 | I58: =H57*Formulario!$F$19 -> 6.611817619e-11 | J58: -6.611817619e-11 | K58: =IF(B58>Formulario!$F$20,0,PMT((Formulario!$F$19),Formulario!$F$20,-Formulario!$F$24)) -> 0 | L58: 0 | M58: =L57*Formulario!$F$19 -> 0 | N58: 0 | O58: =IF(B58>Formulario!$F$20,0,PMT((Formulario!$F$19),Formulario!$F$20,-Formulario!$F$33)) -> 0 | P58: -1.007768976e-10 | Q58: =P57*Formulario!$F$19 -> -7.998166475e-13 | R58: 7.998166475e-13 | S58: =IF(B58>Formulario!$F$20,0,PMT((Formulario!$F$19),Formulario!$F$20,-Formulario!$F$34)) -> 0 | T58: 0 | U58: =T57*Formulario!$F$19 -> 0 | V58: 0
B59: 55 | D59: =-(G59+IF(B59>Formulario!$F$20,0,($P$4/Formulario!$F$20))) -> 0 | E59: =-IF(B59>Formulario!$F$20,0,(G59+($P$4/Formulario!$F$20))) -> 0 | G59: =IF(B59>Formulario!$F$20,0,PMT((Formulario!$F$19),Formulario!$F$20,-Formulario!$F$18)) -> 0 | H59: 8.397537321e-09 | I59: =H58*Formulario!$F$19 -> 6.66471216e-11 | J59: -6.66471216e-11 | K59: =IF(B59>Formulario!$F$20,0,PMT((Formulario!$F$19),Formulario!$F$20,-Formulario!$F$24)) -> 0 | L59: 0 | M59: =L58*Formulario!$F$19 -> 0 | N59: 0 | O59: =IF(B59>Formulario!$F$20,0,PMT((Formulario!$F$19),Formulario!$F$20,-Formulario!$F$33)) -> 0 | P59: -1.015831128e-10 | Q59: =P58*Formulario!$F$19 -> -8.062151806e-13 | R59: 8.062151806e-13 | S59: =IF(B59>Formulario!$F$20,0,PMT((Formulario!$F$19),Formulario!$F$20,-Formulario!$F$34)) -> 0 | T59: 0 | U59: =T58*Formulario!$F$19 -> 0 | V59: 0
B60: 56 | D60: =-(G60+IF(B60>Formulario!$F$20,0,($P$4/Formulario!$F$20))) -> 0 | E60: =-IF(B60>Formulario!$F$20,0,(G60+($P$4/Formulario!$F$20))) -> 0 | G60: =IF(B60>Formulario!$F$20,0,PMT((Formulario!$F$19),Formulario!$F$20,-Formulario!$F$18)) -> 0 | H60: 8.46471762e-09 | I60: =H59*Formulario!$F$19 -> 6.718029857e-11 | J60: -6.718029857e-11 | K60: =IF(B60>Formulario!$F$20,0,PMT((Formulario!$F$19),Formulario!$F$20,-Formulario!$F$24)) -> 0 | L60: 0 | M60: =L59*Formulario!$F$19 -> 0 | N60: 0 | O60: =IF(B60>Formulario!$F$20,0,PMT((Formulario!$F$19),Formulario!$F$20,-Formulario!$F$33)) -> 0 | P60: -1.023957777e-10 | Q60: =P59*Formulario!$F$19 -> -8.126649021e-13 | R60: 8.126649021e-13 | S60: =IF(B60>Formulario!$F$20,0,PMT((Formulario!$F$19),Formulario!$F$20,-Formulario!$F$34)) -> 0 | T60: 0 | U60: =T59*Formulario!$F$19 -> 0 | V60: 0
B61: 57 | D61: =-(G61+IF(B61>Formulario!$F$20,0,($P$4/Formulario!$F$20))) -> 0 | E61: =-IF(B61>Formulario!$F$20,0,(G61+($P$4/Formulario!$F$20))) -> 0 | G61: =IF(B61>Formulario!$F$20,0,PMT((Formulario!$F$19),Formulario!$F$20,-Formulario!$F$18)) -> 0 | H61: 8.532435361e-09 | I61: =H60*Formulario!$F$19 -> 6.771774096e-11 | J61: -6.771774096e-11 | K61: =IF(B61>Formulario!$F$20,0,PMT((Formulario!$F$19),Formulario!$F$20,-Formulario!$F$24)) -> 0 | L61: 0 | M61: =L60*Formulario!$F$19 -> 0 | N61: 0 | O61: =IF(B61>Formulario!$F$20,0,PMT((Formulario!$F$19),Formulario!$F$20,-Formulario!$F$33)) -> 0 | P61: -1.032149439e-10 | Q61: =P60*Formulario!$F$19 -> -8.191662213e-13 | R61: 8.191662213e-13 | S61: =IF(B61>Formulario!$F$20,0,PMT((Formulario!$F$19),Formulario!$F$20,-Formulario!$F$34)) -> 0 | T61: 0 | U61: =T60*Formulario!$F$19 -> 0 | V61: 0
B62: 58 | D62: =-(G62+IF(B62>Formulario!$F$20,0,($P$4/Formulario!$F$20))) -> 0 | E62: =-IF(B62>Formulario!$F$20,0,(G62+($P$4/Formulario!$F$20))) -> 0 | G62: =IF(B62>Formulario!$F$20,0,PMT((Formulario!$F$19),Formulario!$F$20,-Formulario!$F$18)) -> 0 | H62: 8.600694844e-09 | I62: =H61*Formulario!$F$19 -> 6.825948289e-11 | J62: -6.825948289e-11 | K62: =IF(B62>Formulario!$F$20,0,PMT((Formulario!$F$19),Formulario!$F$20,-Formulario!$F$24)) -> 0 | L62: 0 | M62: =L61*Formulario!$F$19 -> 0 | N62: 0 | O62: =IF(B62>Formulario!$F$20,0,PMT((Formulario!$F$19),Formulario!$F$20,-Formulario!$F$33)) -> 0 | P62: -1.040406634e-10 | Q62: =P61*Formulario!$F$19 -> -8.257195511e-13 | R62: 8.257195511e-13 | S62: =IF(B62>Formulario!$F$20,0,PMT((Formulario!$F$19),Formulario!$F$20,-Formulario!$F$34)) -> 0 | T62: 0 | U62: =T61*Formulario!$F$19 -> 0 | V62: 0
B63: 59 | D63: =-(G63+IF(B63>Formulario!$F$20,0,($P$4/Formulario!$F$20))) -> 0 | E63: =-IF(B63>Formulario!$F$20,0,(G63+($P$4/Formulario!$F$20))) -> 0 | G63: =IF(B63>Formulario!$F$20,0,PMT((Formulario!$F$19),Formulario!$F$20,-Formulario!$F$18)) -> 0 | H63: 8.669500403e-09 | I63: =H62*Formulario!$F$19 -> 6.880555875e-11 | J63: -6.880555875e-11 | K63: =IF(B63>Formulario!$F$20,0,PMT((Formulario!$F$19),Formulario!$F$20,-Formulario!$F$24)) -> 0 | L63: 0 | M63: =L62*Formulario!$F$19 -> 0 | N63: 0 | O63: =IF(B63>Formulario!$F$20,0,PMT((Formulario!$F$19),Formulario!$F$20,-Formulario!$F$33)) -> 0 | P63: -1.048729887e-10 | Q63: =P62*Formulario!$F$19 -> -8.323253075e-13 | R63: 8.323253075e-13 | S63: =IF(B63>Formulario!$F$20,0,PMT((Formulario!$F$19),Formulario!$F$20,-Formulario!$F$34)) -> 0 | T63: 0 | U63: =T62*Formulario!$F$19 -> 0 | V63: 0
B64: 60 | D64: =-(G64+IF(B64>Formulario!$F$20,0,($P$4/Formulario!$F$20))) -> 0 | E64: =-IF(B64>Formulario!$F$20,0,(G64+($P$4/Formulario!$F$20))) -> 0 | G64: =IF(B64>Formulario!$F$20,0,PMT((Formulario!$F$19),Formulario!$F$20,-Formulario!$F$18)) -> 0 | H64: 8.738856406e-09 | I64: =H63*Formulario!$F$19 -> 6.935600322e-11 | J64: -6.935600322e-11 | K64: =IF(B64>Formulario!$F$20,0,PMT((Formulario!$F$19),Formulario!$F$20,-Formulario!$F$24)) -> 0 | L64: 0 | M64: =L63*Formulario!$F$19 -> 0 | N64: 0 | O64: =IF(B64>Formulario!$F$20,0,PMT((Formulario!$F$19),Formulario!$F$20,-Formulario!$F$33)) -> 0 | P64: -1.057119727e-10 | Q64: =P63*Formulario!$F$19 -> -8.389839099e-13 | R64: 8.389839099e-13 | S64: =IF(B64>Formulario!$F$20,0,PMT((Formulario!$F$19),Formulario!$F$20,-Formulario!$F$34)) -> 0 | T64: 0 | U64: =T63*Formulario!$F$19 -> 0 | V64: 0
B65: 61 | D65: =-(G65+IF(B65>Formulario!$F$20,0,($P$4/Formulario!$F$20))) -> 0 | E65: =-IF(B65>Formulario!$F$20,0,(G65+($P$4/Formulario!$F$20))) -> 0 | G65: =IF(B65>Formulario!$F$20,0,PMT((Formulario!$F$19),Formulario!$F$20,-Formulario!$F$18)) -> 0 | H65: 8.808767257e-09 | I65: =H64*Formulario!$F$19 -> 6.991085125e-11 | J65: -6.991085125e-11 | K65: =IF(B65>Formulario!$F$20,0,PMT((Formulario!$F$19),Formulario!$F$20,-Formulario!$F$24)) -> 0 | L65: 0 | M65: =L64*Formulario!$F$19 -> 0 | N65: 0 | O65: =IF(B65>Formulario!$F$20,0,PMT((Formulario!$F$19),Formulario!$F$20,-Formulario!$F$33)) -> 0 | P65: -1.065576684e-10 | Q65: =P64*Formulario!$F$19 -> -8.456957812e-13 | R65: 8.456957812e-13 | S65: =IF(B65>Formulario!$F$20,0,PMT((Formulario!$F$19),Formulario!$F$20,-Formulario!$F$34)) -> 0 | T65: 0 | U65: =T64*Formulario!$F$19 -> 0 | V65: 0
B66: 62 | D66: =-(G66+IF(B66>Formulario!$F$20,0,($P$4/Formulario!$F$20))) -> 0 | E66: =-IF(B66>Formulario!$F$20,0,(G66+($P$4/Formulario!$F$20))) -> 0 | G66: =IF(B66>Formulario!$F$20,0,PMT((Formulario!$F$19),Formulario!$F$20,-Formulario!$F$18)) -> 0 | H66: 8.879237395e-09 | I66: =H65*Formulario!$F$19 -> 7.047013806e-11 | J66: -7.047013806e-11 | K66: =IF(B66>Formulario!$F$20,0,PMT((Formulario!$F$19),Formulario!$F$20,-Formulario!$F$24)) -> 0 | L66: 0 | M66: =L65*Formulario!$F$19 -> 0 | N66: 0 | O66: =IF(B66>Formulario!$F$20,0,PMT((Formulario!$F$19),Formulario!$F$20,-Formulario!$F$33)) -> 0 | P66: -1.074101298e-10 | Q66: =P65*Formulario!$F$19 -> -8.524613475e-13 | R66: 8.524613475e-13 | S66: =IF(B66>Formulario!$F$20,0,PMT((Formulario!$F$19),Formulario!$F$20,-Formulario!$F$34)) -> 0 | T66: 0 | U66: =T65*Formulario!$F$19 -> 0 | V66: 0
B67: 63 | D67: =-(G67+IF(B67>Formulario!$F$20,0,($P$4/Formulario!$F$20))) -> 0 | E67: =-IF(B67>Formulario!$F$20,0,(G67+($P$4/Formulario!$F$20))) -> 0 | G67: =IF(B67>Formulario!$F$20,0,PMT((Formulario!$F$19),Formulario!$F$20,-Formulario!$F$18)) -> 0 | H67: 8.950271294e-09 | I67: =H66*Formulario!$F$19 -> 7.103389916e-11 | J67: -7.103389916e-11 | K67: =IF(B67>Formulario!$F$20,0,PMT((Formulario!$F$19),Formulario!$F$20,-Formulario!$F$24)) -> 0 | L67: 0 | M67: =L66*Formulario!$F$19 -> 0 | N67: 0 | O67: =IF(B67>Formulario!$F$20,0,PMT((Formulario!$F$19),Formulario!$F$20,-Formulario!$F$33)) -> 0 | P67: -1.082694108e-10 | Q67: =P66*Formulario!$F$19 -> -8.592810382e-13 | R67: 8.592810382e-13 | S67: =IF(B67>Formulario!$F$20,0,PMT((Formulario!$F$19),Formulario!$F$20,-Formulario!$F$34)) -> 0 | T67: 0 | U67: =T66*Formulario!$F$19 -> 0 | V67: 0
B68: 64 | D68: =-(G68+IF(B68>Formulario!$F$20,0,($P$4/Formulario!$F$20))) -> 0 | E68: =-IF(B68>Formulario!$F$20,0,(G68+($P$4/Formulario!$F$20))) -> 0 | G68: =IF(B68>Formulario!$F$20,0,PMT((Formulario!$F$19),Formulario!$F$20,-Formulario!$F$18)) -> 0 | H68: 9.021873465e-09 | I68: =H67*Formulario!$F$19 -> 7.160217035e-11 | J68: -7.160217035e-11 | K68: =IF(B68>Formulario!$F$20,0,PMT((Formulario!$F$19),Formulario!$F$20,-Formulario!$F$24)) -> 0 | L68: 0 | M68: =L67*Formulario!$F$19 -> 0 | N68: 0 | O68: =IF(B68>Formulario!$F$20,0,PMT((Formulario!$F$19),Formulario!$F$20,-Formulario!$F$33)) -> 0 | P68: -1.091355661e-10 | Q68: =P67*Formulario!$F$19 -> -8.661552865e-13 | R68: 8.661552865e-13 | S68: =IF(B68>Formulario!$F$20,0,PMT((Formulario!$F$19),Formulario!$F$20,-Formulario!$F$34)) -> 0 | T68: 0 | U68: =T67*Formulario!$F$19 -> 0 | V68: 0
B69: 65 | D69: =-(G69+IF(B69>Formulario!$F$20,0,($P$4/Formulario!$F$20))) -> 0 | E69: =-IF(B69>Formulario!$F$20,0,(G69+($P$4/Formulario!$F$20))) -> 0 | G69: =IF(B69>Formulario!$F$20,0,PMT((Formulario!$F$19),Formulario!$F$20,-Formulario!$F$18)) -> 0 | H69: 9.094048452e-09 | I69: =H68*Formulario!$F$19 -> 7.217498772e-11 | J69: -7.217498772e-11 | K69: =IF(B69>Formulario!$F$20,0,PMT((Formulario!$F$19),Formulario!$F$20,-Formulario!$F$24)) -> 0 | L69: 0 | M69: =L68*Formulario!$F$19 -> 0 | N69: 0 | O69: =IF(B69>Formulario!$F$20,0,PMT((Formulario!$F$19),Formulario!$F$20,-Formulario!$F$33)) -> 0 | P69: =+P68-R69 -> -1.100086506e-10 | Q69: =P68*Formulario!$F$19 -> -8.730845288e-13 | R69: 8.730845288e-13 | S69: =IF(B69>Formulario!$F$20,0,PMT((Formulario!$F$19),Formulario!$F$20,-Formulario!$F$34)) -> 0 | T69: 0 | U69: =T68*Formulario!$F$19 -> 0 | V69: =IF($B$39="Prima Mes",0,S69-U69) -> 0
B70: =B69+1 -> 66 | D70: =-(G70+IF(B70>Formulario!$F$20,0,($P$4/Formulario!$F$20))) -> 0 | E70: =-IF(B70>Formulario!$F$20,0,(G70+($P$4/Formulario!$F$20))) -> 0 | G70: =IF(B70>Formulario!$F$20,0,PMT((Formulario!$F$19),Formulario!$F$20,-Formulario!$F$18)) -> 0 | H70: =+H69-J70 -> 9.16680084e-09 | I70: =H69*Formulario!$F$19 -> 7.275238762e-11 | J70: =+G70-I70 -> -7.275238762e-11 | K70: =IF(B70>Formulario!$F$20,0,PMT((Formulario!$F$19),Formulario!$F$20,-Formulario!$F$24)) -> 0 | L70: =+L69-N70 -> 0 | M70: =L69*Formulario!$F$19 -> 0 | N70: =+K70-M70 -> 0 | O70: =IF(B70>Formulario!$F$20,0,PMT((Formulario!$F$19),Formulario!$F$20,-Formulario!$F$33)) -> 0 | P70: -1.108887198e-10 | Q70: =P69*Formulario!$F$19 -> -8.800692051e-13 | R70: =+O70-Q70 -> 8.800692051e-13 | S70: =IF(B70>Formulario!$F$20,0,PMT((Formulario!$F$19),Formulario!$F$20,-Formulario!$F$34)) -> 0 | T70: =IF(B70>$B$16,0,IF($B$39="Prima Mes",0,IF($B$39="Prima Anual",IF(AND(B70<12,OR(B70=0,B70=12,B70=24,B70=36,B70=48,B70=60,B70=72)),$B$41,T69-V70),IF(B70=0,$B$41,T69-V70)))) -> 0 | U70: =T69*Formulario!$F$19 -> 0 | V70: 0
B71: 67 | D71: =-(G71+IF(B71>Formulario!$F$20,0,($P$4/Formulario!$F$20))) -> 0 | E71: =-IF(B71>Formulario!$F$20,0,(G71+($P$4/Formulario!$F$20))) -> 0 | G71: =IF(B71>Formulario!$F$20,0,PMT((Formulario!$F$19),Formulario!$F$20,-Formulario!$F$18)) -> 0 | H71: 9.240135247e-09 | I71: =H70*Formulario!$F$19 -> 7.333440672e-11 | J71: -7.333440672e-11 | K71: =IF(B71>Formulario!$F$20,0,PMT((Formulario!$F$19),Formulario!$F$20,-Formulario!$F$24)) -> 0 | L71: 0 | M71: =L70*Formulario!$F$19 -> 0 | N71: 0 | O71: =IF(B71>Formulario!$F$20,0,PMT((Formulario!$F$19),Formulario!$F$20,-Formulario!$F$33)) -> 0 | P71: -1.117758296e-10 | Q71: =P70*Formulario!$F$19 -> -8.871097587e-13 | R71: 8.871097587e-13 | S71: =IF(B71>Formulario!$F$20,0,PMT((Formulario!$F$19),Formulario!$F$20,-Formulario!$F$34)) -> 0 | T71: 0 | U71: =T70*Formulario!$F$19 -> 0 | V71: 0
B72: 68 | D72: =-(G72+IF(B72>Formulario!$F$20,0,($P$4/Formulario!$F$20))) -> 0 | E72: =-IF(B72>Formulario!$F$20,0,(G72+($P$4/Formulario!$F$20))) -> 0 | G72: =IF(B72>Formulario!$F$20,0,PMT((Formulario!$F$19),Formulario!$F$20,-Formulario!$F$18)) -> 0 | H72: 9.314056329e-09 | I72: =H71*Formulario!$F$19 -> 7.392108197e-11 | J72: -7.392108197e-11 | K72: =IF(B72>Formulario!$F$20,0,PMT((Formulario!$F$19),Formulario!$F$20,-Formulario!$F$24)) -> 0 | L72: 0 | M72: =L71*Formulario!$F$19 -> 0 | N72: 0 | O72: =IF(B72>Formulario!$F$20,0,PMT((Formulario!$F$19),Formulario!$F$20,-Formulario!$F$33)) -> 0 | P72: -1.126700362e-10 | Q72: =P71*Formulario!$F$19 -> -8.942066368e-13 | R72: 8.942066368e-13 | S72: =IF(B72>Formulario!$F$20,0,PMT((Formulario!$F$19),Formulario!$F$20,-Formulario!$F$34)) -> 0 | T72: 0 | U72: =T71*Formulario!$F$19 -> 0 | V72: 0
B73: 69 | D73: =-(G73+IF(B73>Formulario!$F$20,0,($P$4/Formulario!$F$20))) -> 0 | E73: =-IF(B73>Formulario!$F$20,0,(G73+($P$4/Formulario!$F$20))) -> 0 | G73: =IF(B73>Formulario!$F$20,0,PMT((Formulario!$F$19),Formulario!$F$20,-Formulario!$F$18)) -> 0 | H73: 9.388568779e-09 | I73: =H72*Formulario!$F$19 -> 7.451245063e-11 | J73: -7.451245063e-11 | K73: =IF(B73>Formulario!$F$20,0,PMT((Formulario!$F$19),Formulario!$F$20,-Formulario!$F$24)) -> 0 | L73: 0 | M73: =L72*Formulario!$F$19 -> 0 | N73: 0 | O73: =IF(B73>Formulario!$F$20,0,PMT((Formulario!$F$19),Formulario!$F$20,-Formulario!$F$33)) -> 0 | P73: -1.135713965e-10 | Q73: =P72*Formulario!$F$19 -> -9.013602899e-13 | R73: 9.013602899e-13 | S73: =IF(B73>Formulario!$F$20,0,PMT((Formulario!$F$19),Formulario!$F$20,-Formulario!$F$34)) -> 0 | T73: 0 | U73: =T72*Formulario!$F$19 -> 0 | V73: 0
B74: 70 | D74: =-(G74+IF(B74>Formulario!$F$20,0,($P$4/Formulario!$F$20))) -> 0 | E74: =-IF(B74>Formulario!$F$20,0,(G74+($P$4/Formulario!$F$20))) -> 0 | G74: =IF(B74>Formulario!$F$20,0,PMT((Formulario!$F$19),Formulario!$F$20,-Formulario!$F$18)) -> 0 | H74: 9.46367733e-09 | I74: =H73*Formulario!$F$19 -> 7.510855023e-11 | J74: -7.510855023e-11 | K74: =IF(B74>Formulario!$F$20,0,PMT((Formulario!$F$19),Formulario!$F$20,-Formulario!$F$24)) -> 0 | L74: 0 | M74: =L73*Formulario!$F$19 -> 0 | N74: 0 | O74: =IF(B74>Formulario!$F$20,0,PMT((Formulario!$F$19),Formulario!$F$20,-Formulario!$F$33)) -> 0 | P74: -1.144799677e-10 | Q74: =P73*Formulario!$F$19 -> -9.085711722e-13 | R74: 9.085711722e-13 | S74: =IF(B74>Formulario!$F$20,0,PMT((Formulario!$F$19),Formulario!$F$20,-Formulario!$F$34)) -> 0 | T74: 0 | U74: =T73*Formulario!$F$19 -> 0 | V74: 0
B75: 71 | D75: =-(G75+IF(B75>Formulario!$F$20,0,($P$4/Formulario!$F$20))) -> 0 | E75: =-IF(B75>Formulario!$F$20,0,(G75+($P$4/Formulario!$F$20))) -> 0 | G75: =IF(B75>Formulario!$F$20,0,PMT((Formulario!$F$19),Formulario!$F$20,-Formulario!$F$18)) -> 0 | H75: 9.539386748e-09 | I75: =H74*Formulario!$F$19 -> 7.570941864e-11 | J75: -7.570941864e-11 | K75: =IF(B75>Formulario!$F$20,0,PMT((Formulario!$F$19),Formulario!$F$20,-Formulario!$F$24)) -> 0 | L75: 0 | M75: =L74*Formulario!$F$19 -> 0 | N75: 0 | O75: =IF(B75>Formulario!$F$20,0,PMT((Formulario!$F$19),Formulario!$F$20,-Formulario!$F$33)) -> 0 | P75: -1.153958074e-10 | Q75: =P74*Formulario!$F$19 -> -9.158397416e-13 | R75: 9.158397416e-13 | S75: =IF(B75>Formulario!$F$20,0,PMT((Formulario!$F$19),Formulario!$F$20,-Formulario!$F$34)) -> 0 | T75: 0 | U75: =T74*Formulario!$F$19 -> 0 | V75: 0
B76: 72 | D76: =-(G76+IF(B76>Formulario!$F$20,0,($P$4/Formulario!$F$20))) -> 0 | E76: =-IF(B76>Formulario!$F$20,0,(G76+($P$4/Formulario!$F$20))) -> 0 | G76: =IF(B76>Formulario!$F$20,0,PMT((Formulario!$F$19),Formulario!$F$20,-Formulario!$F$18)) -> 0 | H76: 9.615701842e-09 | I76: =H75*Formulario!$F$19 -> 7.631509399e-11 | J76: -7.631509399e-11 | K76: =IF(B76>Formulario!$F$20,0,PMT((Formulario!$F$19),Formulario!$F$20,-Formulario!$F$24)) -> 0 | L76: 0 | M76: =L75*Formulario!$F$19 -> 0 | N76: 0 | O76: =IF(B76>Formulario!$F$20,0,PMT((Formulario!$F$19),Formulario!$F$20,-Formulario!$F$33)) -> 0 | P76: -1.163189739e-10 | Q76: =P75*Formulario!$F$19 -> -9.231664595e-13 | R76: 9.231664595e-13 | S76: =IF(B76>Formulario!$F$20,0,PMT((Formulario!$F$19),Formulario!$F$20,-Formulario!$F$34)) -> 0 | T76: 0 | U76: =T75*Formulario!$F$19 -> 0 | V76: 0
B77: 73 | D77: =-(G77+IF(B77>Formulario!$F$20,0,($P$4/Formulario!$F$20))) -> 0 | E77: =-IF(B77>Formulario!$F$20,0,(G77+($P$4/Formulario!$F$20))) -> 0 | G77: =IF(B77>Formulario!$F$20,0,PMT((Formulario!$F$19),Formulario!$F$20,-Formulario!$F$18)) -> 0 | H77: 9.692627457e-09 | I77: =H76*Formulario!$F$19 -> 7.692561474e-11 | J77: -7.692561474e-11 | K77: =IF(B77>Formulario!$F$20,0,PMT((Formulario!$F$19),Formulario!$F$20,-Formulario!$F$24)) -> 0 | L77: 0 | M77: =L76*Formulario!$F$19 -> 0 | N77: 0 | O77: =IF(B77>Formulario!$F$20,0,PMT((Formulario!$F$19),Formulario!$F$20,-Formulario!$F$33)) -> 0 | P77: -1.172495257e-10 | Q77: =P76*Formulario!$F$19 -> -9.305517912e-13 | R77: 9.305517912e-13 | S77: =IF(B77>Formulario!$F$20,0,PMT((Formulario!$F$19),Formulario!$F$20,-Formulario!$F$34)) -> 0 | T77: 0 | U77: =T76*Formulario!$F$19 -> 0 | V77: 0
B78: 74 | D78: =-(G78+IF(B78>Formulario!$F$20,0,($P$4/Formulario!$F$20))) -> 0 | E78: =-IF(B78>Formulario!$F$20,0,(G78+($P$4/Formulario!$F$20))) -> 0 | G78: =IF(B78>Formulario!$F$20,0,PMT((Formulario!$F$19),Formulario!$F$20,-Formulario!$F$18)) -> 0 | H78: 9.770168477e-09 | I78: =H77*Formulario!$F$19 -> 7.754101966e-11 | J78: -7.754101966e-11 | K78: =IF(B78>Formulario!$F$20,0,PMT((Formulario!$F$19),Formulario!$F$20,-Formulario!$F$24)) -> 0 | L78: 0 | M78: =L77*Formulario!$F$19 -> 0 | N78: 0 | O78: =IF(B78>Formulario!$F$20,0,PMT((Formulario!$F$19),Formulario!$F$20,-Formulario!$F$33)) -> 0 | P78: -1.181875219e-10 | Q78: =P77*Formulario!$F$19 -> -9.379962055e-13 | R78: 9.379962055e-13 | S78: =IF(B78>Formulario!$F$20,0,PMT((Formulario!$F$19),Formulario!$F$20,-Formulario!$F$34)) -> 0 | T78: 0 | U78: =T77*Formulario!$F$19 -> 0 | V78: 0
B79: 75 | D79: =-(G79+IF(B79>Formulario!$F$20,0,($P$4/Formulario!$F$20))) -> 0 | E79: =-IF(B79>Formulario!$F$20,0,(G79+($P$4/Formulario!$F$20))) -> 0 | G79: =IF(B79>Formulario!$F$20,0,PMT((Formulario!$F$19),Formulario!$F$20,-Formulario!$F$18)) -> 0 | H79: 9.848329824e-09 | I79: =H78*Formulario!$F$19 -> 7.816134781e-11 | J79: -7.816134781e-11 | K79: =IF(B79>Formulario!$F$20,0,PMT((Formulario!$F$19),Formulario!$F$20,-Formulario!$F$24)) -> 0 | L79: 0 | M79: =L78*Formulario!$F$19 -> 0 | N79: 0 | O79: =IF(B79>Formulario!$F$20,0,PMT((Formulario!$F$19),Formulario!$F$20,-Formulario!$F$33)) -> 0 | P79: -1.191330221e-10 | Q79: =P78*Formulario!$F$19 -> -9.455001752e-13 | R79: 9.455001752e-13 | S79: =IF(B79>Formulario!$F$20,0,PMT((Formulario!$F$19),Formulario!$F$20,-Formulario!$F$34)) -> 0 | T79: 0 | U79: =T78*Formulario!$F$19 -> 0 | V79: 0
B80: 76 | D80: =-(G80+IF(B80>Formulario!$F$20,0,($P$4/Formulario!$F$20))) -> 0 | E80: =-IF(B80>Formulario!$F$20,0,(G80+($P$4/Formulario!$F$20))) -> 0 | G80: =IF(B80>Formulario!$F$20,0,PMT((Formulario!$F$19),Formulario!$F$20,-Formulario!$F$18)) -> 0 | H80: 9.927116463e-09 | I80: =H79*Formulario!$F$19 -> 7.87866386e-11 | J80: -7.87866386e-11 | K80: =IF(B80>Formulario!$F$20,0,PMT((Formulario!$F$19),Formulario!$F$20,-Formulario!$F$24)) -> 0 | L80: 0 | M80: =L79*Formulario!$F$19 -> 0 | N80: 0 | O80: =IF(B80>Formulario!$F$20,0,PMT((Formulario!$F$19),Formulario!$F$20,-Formulario!$F$33)) -> 0 | P80: -1.200860862e-10 | Q80: =P79*Formulario!$F$19 -> -9.530641766e-13 | R80: 9.530641766e-13 | S80: =IF(B80>Formulario!$F$20,0,PMT((Formulario!$F$19),Formulario!$F$20,-Formulario!$F$34)) -> 0 | T80: 0 | U80: =T79*Formulario!$F$19 -> 0 | V80: 0
B81: 77 | D81: =-(G81+IF(B81>Formulario!$F$20,0,($P$4/Formulario!$F$20))) -> 0 | E81: =-IF(B81>Formulario!$F$20,0,(G81+($P$4/Formulario!$F$20))) -> 0 | G81: =IF(B81>Formulario!$F$20,0,PMT((Formulario!$F$19),Formulario!$F$20,-Formulario!$F$18)) -> 0 | H81: 1.000653339e-08 | I81: =H80*Formulario!$F$19 -> 7.94169317e-11 | J81: -7.94169317e-11 | K81: =IF(B81>Formulario!$F$20,0,PMT((Formulario!$F$19),Formulario!$F$20,-Formulario!$F$24)) -> 0 | L81: 0 | M81: =L80*Formulario!$F$19 -> 0 | N81: 0 | O81: =IF(B81>Formulario!$F$20,0,PMT((Formulario!$F$19),Formulario!$F$20,-Formulario!$F$33)) -> 0 | P81: -1.210467749e-10 | Q81: =P80*Formulario!$F$19 -> -9.6068869e-13 | R81: 9.6068869e-13 | S81: =IF(B81>Formulario!$F$20,0,PMT((Formulario!$F$19),Formulario!$F$20,-Formulario!$F$34)) -> 0 | T81: 0 | U81: =T80*Formulario!$F$19 -> 0 | V81: 0
B82: 78 | D82: =-(G82+IF(B82>Formulario!$F$20,0,($P$4/Formulario!$F$20))) -> 0 | E82: =-IF(B82>Formulario!$F$20,0,(G82+($P$4/Formulario!$F$20))) -> 0 | G82: =IF(B82>Formulario!$F$20,0,PMT((Formulario!$F$19),Formulario!$F$20,-Formulario!$F$18)) -> 0 | H82: 1.008658566e-08 | I82: =H81*Formulario!$F$19 -> 8.005226716e-11 | J82: -8.005226716e-11 | K82: =IF(B82>Formulario!$F$20,0,PMT((Formulario!$F$19),Formulario!$F$20,-Formulario!$F$24)) -> 0 | L82: 0 | M82: =L81*Formulario!$F$19 -> 0 | N82: 0 | O82: =IF(B82>Formulario!$F$20,0,PMT((Formulario!$F$19),Formulario!$F$20,-Formulario!$F$33)) -> 0 | P82: -1.220151491e-10 | Q82: =P81*Formulario!$F$19 -> -9.683741995e-13 | R82: 9.683741995e-13 | S82: =IF(B82>Formulario!$F$20,0,PMT((Formulario!$F$19),Formulario!$F$20,-Formulario!$F$34)) -> 0 | T82: 0 | U82: =T81*Formulario!$F$19 -> 0 | V82: 0
B83: 79 | D83: =-(G83+IF(B83>Formulario!$F$20,0,($P$4/Formulario!$F$20))) -> 0 | E83: =-IF(B83>Formulario!$F$20,0,(G83+($P$4/Formulario!$F$20))) -> 0 | G83: =IF(B83>Formulario!$F$20,0,PMT((Formulario!$F$19),Formulario!$F$20,-Formulario!$F$18)) -> 0 | H83: 1.016727835e-08 | I83: =H82*Formulario!$F$19 -> 8.069268529e-11 | J83: -8.069268529e-11 | K83: =IF(B83>Formulario!$F$20,0,PMT((Formulario!$F$19),Formulario!$F$20,-Formulario!$F$24)) -> 0 | L83: 0 | M83: =L82*Formulario!$F$19 -> 0 | N83: 0 | O83: =IF(B83>Formulario!$F$20,0,PMT((Formulario!$F$19),Formulario!$F$20,-Formulario!$F$33)) -> 0 | P83: -1.229912703e-10 | Q83: =P82*Formulario!$F$19 -> -9.761211931e-13 | R83: 9.761211931e-13 | S83: =IF(B83>Formulario!$F$20,0,PMT((Formulario!$F$19),Formulario!$F$20,-Formulario!$F$34)) -> 0 | T83: 0 | U83: =T82*Formulario!$F$19 -> 0 | V83: 0
B84: 80 | D84: =-(G84+IF(B84>Formulario!$F$20,0,($P$4/Formulario!$F$20))) -> 0 | E84: =-IF(B84>Formulario!$F$20,0,(G84+($P$4/Formulario!$F$20))) -> 0 | G84: =IF(B84>Formulario!$F$20,0,PMT((Formulario!$F$19),Formulario!$F$20,-Formulario!$F$18)) -> 0 | H84: 1.024861657e-08 | I84: =H83*Formulario!$F$19 -> 8.133822678e-11 | J84: -8.133822678e-11 | K84: =IF(B84>Formulario!$F$20,0,PMT((Formulario!$F$19),Formulario!$F$20,-Formulario!$F$24)) -> 0 | L84: 0 | M84: =L83*Formulario!$F$19 -> 0 | N84: 0 | O84: =IF(B84>Formulario!$F$20,0,PMT((Formulario!$F$19),Formulario!$F$20,-Formulario!$F$33)) -> 0 | P84: -1.239752005e-10 | Q84: =P83*Formulario!$F$19 -> -9.839301626e-13 | R84: 9.839301626e-13 | S84: =IF(B84>Formulario!$F$20,0,PMT((Formulario!$F$19),Formulario!$F$20,-Formulario!$F$34)) -> 0 | T84: 0 | U84: =T83*Formulario!$F$19 -> 0 | V84: 0
B85: 81 | D85: =-(G85+IF(B85>Formulario!$F$20,0,($P$4/Formulario!$F$20))) -> 0 | E85: =-IF(B85>Formulario!$F$20,0,(G85+($P$4/Formulario!$F$20))) -> 0 | G85: =IF(B85>Formulario!$F$20,0,PMT((Formulario!$F$19),Formulario!$F$20,-Formulario!$F$18)) -> 0 | H85: 1.033060551e-08 | I85: =H84*Formulario!$F$19 -> 8.198893259e-11 | J85: -8.198893259e-11 | K85: =IF(B85>Formulario!$F$20,0,PMT((Formulario!$F$19),Formulario!$F$20,-Formulario!$F$24)) -> 0 | L85: 0 | M85: =L84*Formulario!$F$19 -> 0 | N85: 0 | O85: =IF(B85>Formulario!$F$20,0,PMT((Formulario!$F$19),Formulario!$F$20,-Formulario!$F$33)) -> 0 | P85: -1.249670021e-10 | Q85: =P84*Formulario!$F$19 -> -9.918016039e-13 | R85: 9.918016039e-13 | S85: =IF(B85>Formulario!$F$20,0,PMT((Formulario!$F$19),Formulario!$F$20,-Formulario!$F$34)) -> 0 | T85: 0 | U85: =T84*Formulario!$F$19 -> 0 | V85: 0
B86: 82 | D86: =-(G86+IF(B86>Formulario!$F$20,0,($P$4/Formulario!$F$20))) -> 0 | E86: =-IF(B86>Formulario!$F$20,0,(G86+($P$4/Formulario!$F$20))) -> 0 | G86: =IF(B86>Formulario!$F$20,0,PMT((Formulario!$F$19),Formulario!$F$20,-Formulario!$F$18)) -> 0 | H86: 1.041325035e-08 | I86: =H85*Formulario!$F$19 -> 8.264484405e-11 | J86: -8.264484405e-11 | K86: =IF(B86>Formulario!$F$20,0,PMT((Formulario!$F$19),Formulario!$F$20,-Formulario!$F$24)) -> 0 | L86: 0 | M86: =L85*Formulario!$F$19 -> 0 | N86: 0 | O86: =IF(B86>Formulario!$F$20,0,PMT((Formulario!$F$19),Formulario!$F$20,-Formulario!$F$33)) -> 0 | P86: -1.259667381e-10 | Q86: =P85*Formulario!$F$19 -> -9.997360168e-13 | R86: 9.997360168e-13 | S86: =IF(B86>Formulario!$F$20,0,PMT((Formulario!$F$19),Formulario!$F$20,-Formulario!$F$34)) -> 0 | T86: 0 | U86: =T85*Formulario!$F$19 -> 0 | V86: 0
B87: 83 | D87: =-(G87+IF(B87>Formulario!$F$20,0,($P$4/Formulario!$F$20))) -> 0 | E87: =-IF(B87>Formulario!$F$20,0,(G87+($P$4/Formulario!$F$20))) -> 0 | G87: =IF(B87>Formulario!$F$20,0,PMT((Formulario!$F$19),Formulario!$F$20,-Formulario!$F$18)) -> 0 | H87: 1.049655635e-08 | I87: =H86*Formulario!$F$19 -> 8.33060028e-11 | J87: -8.33060028e-11 | K87: =IF(B87>Formulario!$F$20,0,PMT((Formulario!$F$19),Formulario!$F$20,-Formulario!$F$24)) -> 0 | L87: 0 | M87: =L86*Formulario!$F$19 -> 0 | N87: 0 | O87: =IF(B87>Formulario!$F$20,0,PMT((Formulario!$F$19),Formulario!$F$20,-Formulario!$F$33)) -> 0 | P87: -1.26974472e-10 | Q87: =P86*Formulario!$F$19 -> -1.007733905e-12 | R87: 1.007733905e-12 | S87: =IF(B87>Formulario!$F$20,0,PMT((Formulario!$F$19),Formulario!$F$20,-Formulario!$F$34)) -> 0 | T87: 0 | U87: =T86*Formulario!$F$19 -> 0 | V87: 0
B88: 84 | D88: =-(G88+IF(B88>Formulario!$F$20,0,($P$4/Formulario!$F$20))) -> 0 | E88: =-IF(B88>Formulario!$F$20,0,(G88+($P$4/Formulario!$F$20))) -> 0 | G88: =IF(B88>Formulario!$F$20,0,PMT((Formulario!$F$19),Formulario!$F$20,-Formulario!$F$18)) -> 0 | H88: 1.05805288e-08 | I88: =H87*Formulario!$F$19 -> 8.397245083e-11 | J88: -8.397245083e-11 | K88: =IF(B88>Formulario!$F$20,0,PMT((Formulario!$F$19),Formulario!$F$20,-Formulario!$F$24)) -> 0 | L88: 0 | M88: =L87*Formulario!$F$19 -> 0 | N88: 0 | O88: =IF(B88>Formulario!$F$20,0,PMT((Formulario!$F$19),Formulario!$F$20,-Formulario!$F$33)) -> 0 | P88: -1.279902678e-10 | Q88: =P87*Formulario!$F$19 -> -1.015795776e-12 | R88: 1.015795776e-12 | S88: =IF(B88>Formulario!$F$20,0,PMT((Formulario!$F$19),Formulario!$F$20,-Formulario!$F$34)) -> 0 | T88: 0 | U88: =T87*Formulario!$F$19 -> 0 | V88: 0
B89: 85 | D89: =-(G89+IF(B89>Formulario!$F$20,0,($P$4/Formulario!$F$20))) -> 0 | E89: =-IF(B89>Formulario!$F$20,0,(G89+($P$4/Formulario!$F$20))) -> 0 | G89: =IF(B89>Formulario!$F$20,0,PMT((Formulario!$F$19),Formulario!$F$20,-Formulario!$F$18)) -> 0 | H89: 1.066517303e-08 | I89: =H88*Formulario!$F$19 -> 8.464423043e-11 | J89: -8.464423043e-11 | K89: =IF(B89>Formulario!$F$20,0,PMT((Formulario!$F$19),Formulario!$F$20,-Formulario!$F$24)) -> 0 | L89: 0 | M89: =L88*Formulario!$F$19 -> 0 | N89: 0 | O89: =IF(B89>Formulario!$F$20,0,PMT((Formulario!$F$19),Formulario!$F$20,-Formulario!$F$33)) -> 0 | P89: -1.290141899e-10 | Q89: =P88*Formulario!$F$19 -> -1.023922142e-12 | R89: 1.023922142e-12 | S89: =IF(B89>Formulario!$F$20,0,PMT((Formulario!$F$19),Formulario!$F$20,-Formulario!$F$34)) -> 0 | T89: 0 | U89: =T88*Formulario!$F$19 -> 0 | V89: 0
B90: 86 | D90: =-(G90+IF(B90>Formulario!$F$20,0,($P$4/Formulario!$F$20))) -> 0 | E90: =-IF(B90>Formulario!$F$20,0,(G90+($P$4/Formulario!$F$20))) -> 0 | G90: =IF(B90>Formulario!$F$20,0,PMT((Formulario!$F$19),Formulario!$F$20,-Formulario!$F$18)) -> 0 | H90: 1.075049442e-08 | I90: =H89*Formulario!$F$19 -> 8.532138428e-11 | J90: -8.532138428e-11 | K90: =IF(B90>Formulario!$F$20,0,PMT((Formulario!$F$19),Formulario!$F$20,-Formulario!$F$24)) -> 0 | L90: 0 | M90: =L89*Formulario!$F$19 -> 0 | N90: 0 | O90: =IF(B90>Formulario!$F$20,0,PMT((Formulario!$F$19),Formulario!$F$20,-Formulario!$F$33)) -> 0 | P90: -1.300463035e-10 | Q90: =P89*Formulario!$F$19 -> -1.032113519e-12 | R90: 1.032113519e-12 | S90: =IF(B90>Formulario!$F$20,0,PMT((Formulario!$F$19),Formulario!$F$20,-Formulario!$F$34)) -> 0 | T90: 0 | U90: =T89*Formulario!$F$19 -> 0 | V90: 0
B91: 87 | D91: =-(G91+IF(B91>Formulario!$F$20,0,($P$4/Formulario!$F$20))) -> 0 | E91: =-IF(B91>Formulario!$F$20,0,(G91+($P$4/Formulario!$F$20))) -> 0 | G91: =IF(B91>Formulario!$F$20,0,PMT((Formulario!$F$19),Formulario!$F$20,-Formulario!$F$18)) -> 0 | H91: 1.083649837e-08 | I91: =H90*Formulario!$F$19 -> 8.600395535e-11 | J91: -8.600395535e-11 | K91: =IF(B91>Formulario!$F$20,0,PMT((Formulario!$F$19),Formulario!$F$20,-Formulario!$F$24)) -> 0 | L91: 0 | M91: =L90*Formulario!$F$19 -> 0 | N91: 0 | O91: =IF(B91>Formulario!$F$20,0,PMT((Formulario!$F$19),Formulario!$F$20,-Formulario!$F$33)) -> 0 | P91: -1.310866739e-10 | Q91: =P90*Formulario!$F$19 -> -1.040370428e-12 | R91: 1.040370428e-12 | S91: =IF(B91>Formulario!$F$20,0,PMT((Formulario!$F$19),Formulario!$F$20,-Formulario!$F$34)) -> 0 | T91: 0 | U91: =T90*Formulario!$F$19 -> 0 | V91: 0
B92: 88 | D92: =-(G92+IF(B92>Formulario!$F$20,0,($P$4/Formulario!$F$20))) -> 0 | E92: =-IF(B92>Formulario!$F$20,0,(G92+($P$4/Formulario!$F$20))) -> 0 | G92: =IF(B92>Formulario!$F$20,0,PMT((Formulario!$F$19),Formulario!$F$20,-Formulario!$F$18)) -> 0 | H92: 1.092319036e-08 | I92: =H91*Formulario!$F$19 -> 8.669198699e-11 | J92: -8.669198699e-11 | K92: =IF(B92>Formulario!$F$20,0,PMT((Formulario!$F$19),Formulario!$F$20,-Formulario!$F$24)) -> 0 | L92: 0 | M92: =L91*Formulario!$F$19 -> 0 | N92: 0 | O92: =IF(B92>Formulario!$F$20,0,PMT((Formulario!$F$19),Formulario!$F$20,-Formulario!$F$33)) -> 0 | P92: -1.321353673e-10 | Q92: =P91*Formulario!$F$19 -> -1.048693391e-12 | R92: 1.048693391e-12 | S92: =IF(B92>Formulario!$F$20,0,PMT((Formulario!$F$19),Formulario!$F$20,-Formulario!$F$34)) -> 0 | T92: 0 | U92: =T91*Formulario!$F$19 -> 0 | V92: 0
B93: 89 | D93: =-(G93+IF(B93>Formulario!$F$20,0,($P$4/Formulario!$F$20))) -> 0 | E93: =-IF(B93>Formulario!$F$20,0,(G93+($P$4/Formulario!$F$20))) -> 0 | G93: =IF(B93>Formulario!$F$20,0,PMT((Formulario!$F$19),Formulario!$F$20,-Formulario!$F$18)) -> 0 | H93: 1.101057588e-08 | I93: =H92*Formulario!$F$19 -> 8.738552289e-11 | J93: -8.738552289e-11 | K93: =IF(B93>Formulario!$F$20,0,PMT((Formulario!$F$19),Formulario!$F$20,-Formulario!$F$24)) -> 0 | L93: 0 | M93: =L92*Formulario!$F$19 -> 0 | N93: 0 | O93: =IF(B93>Formulario!$F$20,0,PMT((Formulario!$F$19),Formulario!$F$20,-Formulario!$F$33)) -> 0 | P93: -1.331924502e-10 | Q93: =P92*Formulario!$F$19 -> -1.057082938e-12 | R93: 1.057082938e-12 | S93: =IF(B93>Formulario!$F$20,0,PMT((Formulario!$F$19),Formulario!$F$20,-Formulario!$F$34)) -> 0 | T93: 0 | U93: =T92*Formulario!$F$19 -> 0 | V93: 0
B94: 90 | D94: =-(G94+IF(B94>Formulario!$F$20,0,($P$4/Formulario!$F$20))) -> 0 | E94: =-IF(B94>Formulario!$F$20,0,(G94+($P$4/Formulario!$F$20))) -> 0 | G94: =IF(B94>Formulario!$F$20,0,PMT((Formulario!$F$19),Formulario!$F$20,-Formulario!$F$18)) -> 0 | H94: 1.109866049e-08 | I94: =H93*Formulario!$F$19 -> 8.808460707e-11 | J94: -8.808460707e-11 | K94: =IF(B94>Formulario!$F$20,0,PMT((Formulario!$F$19),Formulario!$F$20,-Formulario!$F$24)) -> 0 | L94: 0 | M94: =L93*Formulario!$F$19 -> 0 | N94: 0 | O94: =IF(B94>Formulario!$F$20,0,PMT((Formulario!$F$19),Formulario!$F$20,-Formulario!$F$33)) -> 0 | P94: -1.342579898e-10 | Q94: =P93*Formulario!$F$19 -> -1.065539602e-12 | R94: 1.065539602e-12 | S94: =IF(B94>Formulario!$F$20,0,PMT((Formulario!$F$19),Formulario!$F$20,-Formulario!$F$34)) -> 0 | T94: 0 | U94: =T93*Formulario!$F$19 -> 0 | V94: 0
B95: 91 | D95: =-(G95+IF(B95>Formulario!$F$20,0,($P$4/Formulario!$F$20))) -> 0 | E95: =-IF(B95>Formulario!$F$20,0,(G95+($P$4/Formulario!$F$20))) -> 0 | G95: =IF(B95>Formulario!$F$20,0,PMT((Formulario!$F$19),Formulario!$F$20,-Formulario!$F$18)) -> 0 | H95: 1.118744978e-08 | I95: =H94*Formulario!$F$19 -> 8.878928393e-11 | J95: -8.878928393e-11 | K95: =IF(B95>Formulario!$F$20,0,PMT((Formulario!$F$19),Formulario!$F$20,-Formulario!$F$24)) -> 0 | L95: 0 | M95: =L94*Formulario!$F$19 -> 0 | N95: 0 | O95: =IF(B95>Formulario!$F$20,0,PMT((Formulario!$F$19),Formulario!$F$20,-Formulario!$F$33)) -> 0 | P95: -1.353320537e-10 | Q95: =P94*Formulario!$F$19 -> -1.074063919e-12 | R95: 1.074063919e-12 | S95: =IF(B95>Formulario!$F$20,0,PMT((Formulario!$F$19),Formulario!$F$20,-Formulario!$F$34)) -> 0 | T95: 0 | U95: =T94*Formulario!$F$19 -> 0 | V95: 0
B96: 92 | D96: =-(G96+IF(B96>Formulario!$F$20,0,($P$4/Formulario!$F$20))) -> 0 | E96: =-IF(B96>Formulario!$F$20,0,(G96+($P$4/Formulario!$F$20))) -> 0 | G96: =IF(B96>Formulario!$F$20,0,PMT((Formulario!$F$19),Formulario!$F$20,-Formulario!$F$18)) -> 0 | H96: 1.127694937e-08 | I96: =H95*Formulario!$F$19 -> 8.94995982e-11 | J96: -8.94995982e-11 | K96: =IF(B96>Formulario!$F$20,0,PMT((Formulario!$F$19),Formulario!$F$20,-Formulario!$F$24)) -> 0 | L96: 0 | M96: =L95*Formulario!$F$19 -> 0 | N96: 0 | O96: =IF(B96>Formulario!$F$20,0,PMT((Formulario!$F$19),Formulario!$F$20,-Formulario!$F$33)) -> 0 | P96: -1.364147102e-10 | Q96: =P95*Formulario!$F$19 -> -1.08265643e-12 | R96: 1.08265643e-12 | S96: =IF(B96>Formulario!$F$20,0,PMT((Formulario!$F$19),Formulario!$F$20,-Formulario!$F$34)) -> 0 | T96: 0 | U96: =T95*Formulario!$F$19 -> 0 | V96: 0
B97: 93 | D97: =-(G97+IF(B97>Formulario!$F$20,0,($P$4/Formulario!$F$20))) -> 0 | E97: =-IF(B97>Formulario!$F$20,0,(G97+($P$4/Formulario!$F$20))) -> 0 | G97: =IF(B97>Formulario!$F$20,0,PMT((Formulario!$F$19),Formulario!$F$20,-Formulario!$F$18)) -> 0 | H97: 1.136716497e-08 | I97: =H96*Formulario!$F$19 -> 9.021559499e-11 | J97: -9.021559499e-11 | K97: =IF(B97>Formulario!$F$20,0,PMT((Formulario!$F$19),Formulario!$F$20,-Formulario!$F$24)) -> 0 | L97: 0 | M97: =L96*Formulario!$F$19 -> 0 | N97: 0 | O97: =IF(B97>Formulario!$F$20,0,PMT((Formulario!$F$19),Formulario!$F$20,-Formulario!$F$33)) -> 0 | P97: -1.375060278e-10 | Q97: =P96*Formulario!$F$19 -> -1.091317681e-12 | R97: 1.091317681e-12 | S97: =IF(B97>Formulario!$F$20,0,PMT((Formulario!$F$19),Formulario!$F$20,-Formulario!$F$34)) -> 0 | T97: 0 | U97: =T96*Formulario!$F$19 -> 0 | V97: 0
B98: 94 | D98: =-(G98+IF(B98>Formulario!$F$20,0,($P$4/Formulario!$F$20))) -> 0 | E98: =-IF(B98>Formulario!$F$20,0,(G98+($P$4/Formulario!$F$20))) -> 0 | G98: =IF(B98>Formulario!$F$20,0,PMT((Formulario!$F$19),Formulario!$F$20,-Formulario!$F$18)) -> 0 | H98: 1.145810229e-08 | I98: =H97*Formulario!$F$19 -> 9.093731975e-11 | J98: -9.093731975e-11 | K98: =IF(B98>Formulario!$F$20,0,PMT((Formulario!$F$19),Formulario!$F$20,-Formulario!$F$24)) -> 0 | L98: 0 | M98: =L97*Formulario!$F$19 -> 0 | N98: 0 | O98: =IF(B98>Formulario!$F$20,0,PMT((Formulario!$F$19),Formulario!$F$20,-Formulario!$F$33)) -> 0 | P98: -1.386060761e-10 | Q98: =P97*Formulario!$F$19 -> -1.100048223e-12 | R98: 1.100048223e-12 | S98: =IF(B98>Formulario!$F$20,0,PMT((Formulario!$F$19),Formulario!$F$20,-Formulario!$F$34)) -> 0 | T98: 0 | U98: =T97*Formulario!$F$19 -> 0 | V98: 0
B99: 95 | D99: =-(G99+IF(B99>Formulario!$F$20,0,($P$4/Formulario!$F$20))) -> 0 | E99: =-IF(B99>Formulario!$F$20,0,(G99+($P$4/Formulario!$F$20))) -> 0 | G99: =IF(B99>Formulario!$F$20,0,PMT((Formulario!$F$19),Formulario!$F$20,-Formulario!$F$18)) -> 0 | H99: 1.154976711e-08 | I99: =H98*Formulario!$F$19 -> 9.16648183e-11 | J99: -9.16648183e-11 | K99: =IF(B99>Formulario!$F$20,0,PMT((Formulario!$F$19),Formulario!$F$20,-Formulario!$F$24)) -> 0 | L99: 0 | M99: =L98*Formulario!$F$19 -> 0 | N99: 0 | O99: =IF(B99>Formulario!$F$20,0,PMT((Formulario!$F$19),Formulario!$F$20,-Formulario!$F$33)) -> 0 | P99: -1.397149247e-10 | Q99: =P98*Formulario!$F$19 -> -1.108848609e-12 | R99: 1.108848609e-12 | S99: =IF(B99>Formulario!$F$20,0,PMT((Formulario!$F$19),Formulario!$F$20,-Formulario!$F$34)) -> 0 | T99: 0 | U99: =T98*Formulario!$F$19 -> 0 | V99: 0
B100: 96 | D100: =-(G100+IF(B100>Formulario!$F$20,0,($P$4/Formulario!$F$20))) -> 0 | E100: =-IF(B100>Formulario!$F$20,0,(G100+($P$4/Formulario!$F$20))) -> 0 | G100: =IF(B100>Formulario!$F$20,0,PMT((Formulario!$F$19),Formulario!$F$20,-Formulario!$F$18)) -> 0 | H100: 1.164216524e-08 | I100: =H99*Formulario!$F$19 -> 9.239813685e-11 | J100: -9.239813685e-11 | K100: =IF(B100>Formulario!$F$20,0,PMT((Formulario!$F$19),Formulario!$F$20,-Formulario!$F$24)) -> 0 | L100: 0 | M100: =L99*Formulario!$F$19 -> 0 | N100: 0 | O100: =IF(B100>Formulario!$F$20,0,PMT((Formulario!$F$19),Formulario!$F$20,-Formulario!$F$33)) -> 0 | P100: -1.408326441e-10 | Q100: =P99*Formulario!$F$19 -> -1.117719397e-12 | R100: 1.117719397e-12 | S100: =IF(B100>Formulario!$F$20,0,PMT((Formulario!$F$19),Formulario!$F$20,-Formulario!$F$34)) -> 0 | T100: 0 | U100: =T99*Formulario!$F$19 -> 0 | V100: 0
B101: 97 | D101: =-(G101+IF(B101>Formulario!$F$20,0,($P$4/Formulario!$F$20))) -> 0 | E101: =-IF(B101>Formulario!$F$20,0,(G101+($P$4/Formulario!$F$20))) -> 0 | G101: =IF(B101>Formulario!$F$20,0,PMT((Formulario!$F$19),Formulario!$F$20,-Formulario!$F$18)) -> 0 | H101: 1.173530257e-08 | I101: =H100*Formulario!$F$19 -> 9.313732195e-11 | J101: -9.313732195e-11 | K101: =IF(B101>Formulario!$F$20,0,PMT((Formulario!$F$19),Formulario!$F$20,-Formulario!$F$24)) -> 0 | L101: 0 | M101: =L100*Formulario!$F$19 -> 0 | N101: 0 | O101: =IF(B101>Formulario!$F$20,0,PMT((Formulario!$F$19),Formulario!$F$20,-Formulario!$F$33)) -> 0 | P101: -1.419593052e-10 | Q101: =P100*Formulario!$F$19 -> -1.126661153e-12 | R101: 1.126661153e-12 | S101: =IF(B101>Formulario!$F$20,0,PMT((Formulario!$F$19),Formulario!$F$20,-Formulario!$F$34)) -> 0 | T101: 0 | U101: =T100*Formulario!$F$19 -> 0 | V101: 0
B102: 98 | D102: =-(G102+IF(B102>Formulario!$F$20,0,($P$4/Formulario!$F$20))) -> 0 | E102: =-IF(B102>Formulario!$F$20,0,(G102+($P$4/Formulario!$F$20))) -> 0 | G102: =IF(B102>Formulario!$F$20,0,PMT((Formulario!$F$19),Formulario!$F$20,-Formulario!$F$18)) -> 0 | H102: 1.182918499e-08 | I102: =H101*Formulario!$F$19 -> 9.388242052e-11 | J102: -9.388242052e-11 | K102: =IF(B102>Formulario!$F$20,0,PMT((Formulario!$F$19),Formulario!$F$20,-Formulario!$F$24)) -> 0 | L102: 0 | M102: =L101*Formulario!$F$19 -> 0 | N102: 0 | O102: =IF(B102>Formulario!$F$20,0,PMT((Formulario!$F$19),Formulario!$F$20,-Formulario!$F$33)) -> 0 | P102: -1.430949797e-10 | Q102: =P101*Formulario!$F$19 -> -1.135674442e-12 | R102: 1.135674442e-12 | S102: =IF(B102>Formulario!$F$20,0,PMT((Formulario!$F$19),Formulario!$F$20,-Formulario!$F$34)) -> 0 | T102: 0 | U102: =T101*Formulario!$F$19 -> 0 | V102: 0
B103: 99 | D103: =-(G103+IF(B103>Formulario!$F$20,0,($P$4/Formulario!$F$20))) -> 0 | E103: =-IF(B103>Formulario!$F$20,0,(G103+($P$4/Formulario!$F$20))) -> 0 | G103: =IF(B103>Formulario!$F$20,0,PMT((Formulario!$F$19),Formulario!$F$20,-Formulario!$F$18)) -> 0 | H103: 1.192381847e-08 | I103: =H102*Formulario!$F$19 -> 9.463347989e-11 | J103: -9.463347989e-11 | K103: =IF(B103>Formulario!$F$20,0,PMT((Formulario!$F$19),Formulario!$F$20,-Formulario!$F$24)) -> 0 | L103: 0 | M103: =L102*Formulario!$F$19 -> 0 | N103: 0 | O103: =IF(B103>Formulario!$F$20,0,PMT((Formulario!$F$19),Formulario!$F$20,-Formulario!$F$33)) -> 0 | P103: -1.442397395e-10 | Q103: =P102*Formulario!$F$19 -> -1.144759837e-12 | R103: 1.144759837e-12 | S103: =IF(B103>Formulario!$F$20,0,PMT((Formulario!$F$19),Formulario!$F$20,-Formulario!$F$34)) -> 0 | T103: 0 | U103: =T102*Formulario!$F$19 -> 0 | V103: 0
B104: 100 | D104: =-(G104+IF(B104>Formulario!$F$20,0,($P$4/Formulario!$F$20))) -> 0 | E104: =-IF(B104>Formulario!$F$20,0,(G104+($P$4/Formulario!$F$20))) -> 0 | G104: =IF(B104>Formulario!$F$20,0,PMT((Formulario!$F$19),Formulario!$F$20,-Formulario!$F$18)) -> 0 | H104: 1.201920901e-08 | I104: =H103*Formulario!$F$19 -> 9.539054772e-11 | J104: -9.539054772e-11 | K104: =IF(B104>Formulario!$F$20,0,PMT((Formulario!$F$19),Formulario!$F$20,-Formulario!$F$24)) -> 0 | L104: 0 | M104: =L103*Formulario!$F$19 -> 0 | N104: 0 | O104: =IF(B104>Formulario!$F$20,0,PMT((Formulario!$F$19),Formulario!$F$20,-Formulario!$F$33)) -> 0 | P104: -1.453936574e-10 | Q104: =P103*Formulario!$F$19 -> -1.153917916e-12 | R104: 1.153917916e-12 | S104: =IF(B104>Formulario!$F$20,0,PMT((Formulario!$F$19),Formulario!$F$20,-Formulario!$F$34)) -> 0 | T104: 0 | U104: =T103*Formulario!$F$19 -> 0 | V104: 0
